{"text_format":"1","workbook":"xlsx","n_sheets":3,"sheets":["Sommaire","Vertical","Horizontal"],"not_rendered":{"charts":0,"images":2,"macros":1,"external_links":0,"defined_names":2,"comments":0,"pivot_tables":0},"unopened":[],"bounds":{"document_bytes":16777216,"sheet_cells":100000,"rows_first":2000,"rows_last":500,"rows_between":2000,"halvings":0,"cell_chars":16384,"cell_head_chars":4096},"cells_cut":0,"cells_raw":0,"read":"whole","date_system":"1900"}

{"sheet":"Sommaire","index":0,"n_rows":6,"n_cols":2,"rows_kept":6,"cut":false,"hidden":false,"merged":[[1,0,2,0],[4,0,5,0]]}
[]
["Vertical","Agenda vertical permet de noter des rendez-vous, le bouton positionne la fenêtre sur le jour et l'heure "]
[null,"avec un aperçu à partir de l'heure précédente l'heure courante"]
[]
["Horizontal","Agenda horizontal permet de noter des rendez-vous, le bouton positionne la fenêtre sur le jour et l'heure"]
[null,"avec un aperçu à partir de l'heure précédente l'heure courante"]

{"sheet":"Vertical","index":1,"n_rows":106,"n_cols":414,"rows_kept":106,"cut":false,"hidden":false,"merged":[[10,410,10,411]]}
[]
["Sommaire"]
[]
[]
[]
["Exercice",2021]
[44487.775601851848,"Mois : ",{"$f":"IF(C10=TODAY(),C10,IF(AND(WEEKNUM(C10,2)<>WEEKNUM(TODAY(),2),WEEKDAY(C10,2)=4),C10,\"\"))","v":""},"","","","","","2021-01-07","","","","","","","2021-01-14","","","","","","","2021-01-21","","","","","","","2021-01-28","","","","","","","2021-02-04","","","","","","","2021-02-11","","","","","","","2021-02-18","","","","","","","2021-02-25","","","","","","","2021-03-04","",{"$f":"IF(BO10=TODAY(),BO10,IF(AND(WEEKNUM(BO10,2)<>WEEKNUM(TODAY(),2),WEEKDAY(BO10,2)=4),BO10,\"\"))","v":""},"","","","","2021-03-11","","","","","","","2021-03-18","","","","","","","2021-03-25","","","","","","","2021-04-01","","","","","","","2021-04-08","","","","","","","2021-04-15","","","","","","","2021-04-22","","","","","","","2021-04-29","","","","","","","2021-05-06","","",{"$f":"IF(EA10=TODAY(),EA10,IF(AND(WEEKNUM(EA10,2)<>WEEKNUM(TODAY(),2),WEEKDAY(EA10,2)=4),EA10,\"\"))","v":""},"","","","2021-05-13","","","","","","","2021-05-20","","","","","","","2021-05-27","","","","","","","2021-06-03","","","","","","","2021-06-10","","","","","","","2021-06-17","","","","","","","2021-06-24","","","","","","","2021-07-01","","","","","","","2021-07-08","","","",{"$f":"IF(GM10=TODAY(),GM10,IF(AND(WEEKNUM(GM10,2)<>WEEKNUM(TODAY(),2),WEEKDAY(GM10,2)=4),GM10,\"\"))","v":""},"","","2021-07-15","","","","","","","2021-07-22","","","","","","","2021-07-29","","","","","","","2021-08-05","","","","","","","2021-08-12","","","","","","","2021-08-19","","","","","","","2021-08-26","","","","","","","2021-09-02","","","","","","","2021-09-09","","","","",{"$f":"IF(IY10=TODAY(),IY10,IF(AND(WEEKNUM(IY10,2)<>WEEKNUM(TODAY(),2),WEEKDAY(IY10,2)=4),IY10,\"\"))","v":""},"","2021-09-16","","","","","","","2021-09-23","","","","","","","2021-09-30","","","","","","","2021-10-07","","","","","","","2021-10-14","","","","2021-10-18","","","","","","","","","","2021-10-28","","","","","","","2021-11-04","","","","","","","2021-11-11","","","","","",{"$f":"IF(LK10=TODAY(),LK10,IF(AND(WEEKNUM(LK10,2)<>WEEKNUM(TODAY(),2),WEEKDAY(LK10,2)=4),LK10,\"\"))","v":""},"2021-11-18","","","","","","","2021-11-25","","","","","","","2021-12-02","","","",{"$f":"IF(MD9=TODAY(),MD9,IF(AND(WEEKNUM(MD9,2)<>WEEKNUM(TODAY(),2),WEEKDAY(MD9,2)=4),MD9,\"\"))","v":""},"","","2021-12-09","","","","","","","2021-12-16","","","","","","","2021-12-23","","","","","","","2021-12-30","","","","","","","2022-01-06","","","","","","","2022-01-13","","","","","","",{"$f":"IF(NW10=TODAY(),NW10,IF(AND(WEEKNUM(NW10,2)<>WEEKNUM(TODAY(),2),WEEKDAY(NW10,2)=4),NW10,\"\"))","v":"2022-01-20"},"","","","","","","2022-01-27","","","","","","","2022-02-03","","","","","","","2022-02-10"]
[null,"Semaine : ",{"$f":"IF(C10=TODAY(),WEEKNUM(C10,2),IF(AND(WEEKNUM(C10,2)<>WEEKNUM(TODAY(),2),WEEKDAY(C10,2)=1),WEEKNUM(C10,2),\"\"))","v":""},"",{"$f":"IF(E10=TODAY(),WEEKNUM(E10,2),IF(AND(WEEKNUM(E10,2)<>WEEKNUM(TODAY(),2),WEEKDAY(E10,2)=1),WEEKNUM(E10,2),\"\"))","v":""},2,"","","","","","",3,"","","","","","",4,"","","","","","",5,"","","","","","",6,"","","","","","",7,"","","","","","",8,"","","","","","",9,"","","","","","",10,"","","","","","",{"$f":"IF(BQ10=TODAY(),WEEKNUM(BQ10,2),IF(AND(WEEKNUM(BQ10,2)<>WEEKNUM(TODAY(),2),WEEKDAY(BQ10,2)=1),WEEKNUM(BQ10,2),\"\"))","v":11},"","","","","","",12,"","","","","","",13,"","","","","","",14,"","","","","","",15,"","","","","","",16,"","","","","","",17,"","","","","","",18,"","","","","","",19,"","","","","","",20,{"$f":"IF(EC10=TODAY(),WEEKNUM(EC10,2),IF(AND(WEEKNUM(EC10,2)<>WEEKNUM(TODAY(),2),WEEKDAY(EC10,2)=1),WEEKNUM(EC10,2),\"\"))","v":""},"","","","","",21,"","","","","","",22,"","","","","","",23,"","","","","","",24,"","","","","","",25,"","","","","","",26,"","","","","","",27,"","","","","","",28,"","","","","","",29,"",{"$f":"IF(GO10=TODAY(),WEEKNUM(GO10,2),IF(AND(WEEKNUM(GO10,2)<>WEEKNUM(TODAY(),2),WEEKDAY(GO10,2)=1),WEEKNUM(GO10,2),\"\"))","v":""},"","","","",30,"","","","","","",31,"","","","","","",32,"","","","","","",33,"","","","","","",34,"","","","","","",35,"","","","","","",36,"","","","","","",37,"","","","","","",38,"","",{"$f":"IF(JA10=TODAY(),WEEKNUM(JA10,2),IF(AND(WEEKNUM(JA10,2)<>WEEKNUM(TODAY(),2),WEEKDAY(JA10,2)=1),WEEKNUM(JA10,2),\"\"))","v":""},"","","",39,"","","","","","",40,"","","","","","",41,"","","","","","",42,"","","","","","",43,"","","","","","",44,"","","","","","",45,"","","","","","",46,"","","","","","",47,"","","",{"$f":"IF(LM10=TODAY(),WEEKNUM(LM10,2),IF(AND(WEEKNUM(LM10,2)<>WEEKNUM(TODAY(),2),WEEKDAY(LM10,2)=1),WEEKNUM(LM10,2),\"\"))","v":""},"","",48,"","","","","","",49,"","","","","","",50,"","","","","","",51,"","","","","","",52,"","","","","","",53,"","","","","","",2,"","","","","","",3,"","","","","","",4,"","","","",{"$f":"IF(NY10=TODAY(),WEEKNUM(NY10,2),IF(AND(WEEKNUM(NY10,2)<>WEEKNUM(TODAY(),2),WEEKDAY(NY10,2)=1),WEEKNUM(NY10,2),\"\"))","v":""},"",5,"","","","","","",6,"","","","","","",7,"","",""]
[null,"Date : ",{"$f":"DATEVALUE(\"1/1/\"&B6)","v":"2021-01-01"},{"$f":"C9+1","v":"2021-01-02"},{"$f":"D9+1","v":"2021-01-03"},"2021-01-04","2021-01-05","2021-01-06","2021-01-07","2021-01-08","2021-01-09","2021-01-10","2021-01-11","2021-01-12","2021-01-13","2021-01-14","2021-01-15","2021-01-16","2021-01-17","2021-01-18","2021-01-19","2021-01-20","2021-01-21","2021-01-22","2021-01-23","2021-01-24","2021-01-25","2021-01-26","2021-01-27","2021-01-28","2021-01-29","2021-01-30","2021-01-31","2021-02-01","2021-02-02","2021-02-03","2021-02-04","2021-02-05","2021-02-06","2021-02-07","2021-02-08","2021-02-09","2021-02-10","2021-02-11","2021-02-12","2021-02-13","2021-02-14","2021-02-15","2021-02-16","2021-02-17","2021-02-18","2021-02-19","2021-02-20","2021-02-21","2021-02-22","2021-02-23","2021-02-24","2021-02-25","2021-02-26","2021-02-27","2021-02-28","2021-03-01","2021-03-02","2021-03-03","2021-03-04","2021-03-05","2021-03-06","2021-03-07",{"$f":"BP9+1","v":"2021-03-08"},"2021-03-09","2021-03-10","2021-03-11","2021-03-12","2021-03-13","2021-03-14","2021-03-15","2021-03-16","2021-03-17","2021-03-18","2021-03-19","2021-03-20","2021-03-21","2021-03-22","2021-03-23","2021-03-24","2021-03-25","2021-03-26","2021-03-27","2021-03-28","2021-03-29","2021-03-30","2021-03-31","2021-04-01","2021-04-02","2021-04-03","2021-04-04","2021-04-05","2021-04-06","2021-04-07","2021-04-08","2021-04-09","2021-04-10","2021-04-11","2021-04-12","2021-04-13","2021-04-14","2021-04-15","2021-04-16","2021-04-17","2021-04-18","2021-04-19","2021-04-20","2021-04-21","2021-04-22","2021-04-23","2021-04-24","2021-04-25","2021-04-26","2021-04-27","2021-04-28","2021-04-29","2021-04-30","2021-05-01","2021-05-02","2021-05-03","2021-05-04","2021-05-05","2021-05-06","2021-05-07","2021-05-08","2021-05-09","2021-05-10",{"$f":"EB9+1","v":"2021-05-11"},"2021-05-12","2021-05-13","2021-05-14","2021-05-15","2021-05-16","2021-05-17","2021-05-18","2021-05-19","2021-05-20","2021-05-21","2021-05-22","2021-05-23","2021-05-24","2021-05-25","2021-05-26","2021-05-27","2021-05-28","2021-05-29","2021-05-30","2021-05-31","2021-06-01","2021-06-02","2021-06-03","2021-06-04","2021-06-05","2021-06-06","2021-06-07","2021-06-08","2021-06-09","2021-06-10","2021-06-11","2021-06-12","2021-06-13","2021-06-14","2021-06-15","2021-06-16","2021-06-17","2021-06-18","2021-06-19","2021-06-20","2021-06-21","2021-06-22","2021-06-23","2021-06-24","2021-06-25","2021-06-26","2021-06-27","2021-06-28","2021-06-29","2021-06-30","2021-07-01","2021-07-02","2021-07-03","2021-07-04","2021-07-05","2021-07-06","2021-07-07","2021-07-08","2021-07-09","2021-07-10","2021-07-11","2021-07-12","2021-07-13",{"$f":"GN9+1","v":"2021-07-14"},"2021-07-15","2021-07-16","2021-07-17","2021-07-18","2021-07-19","2021-07-20","2021-07-21","2021-07-22","2021-07-23","2021-07-24","2021-07-25","2021-07-26","2021-07-27","2021-07-28","2021-07-29","2021-07-30","2021-07-31","2021-08-01","2021-08-02","2021-08-03","2021-08-04","2021-08-05","2021-08-06","2021-08-07","2021-08-08","2021-08-09","2021-08-10","2021-08-11","2021-08-12","2021-08-13","2021-08-14","2021-08-15","2021-08-16","2021-08-17","2021-08-18","2021-08-19","2021-08-20","2021-08-21","2021-08-22","2021-08-23","2021-08-24","2021-08-25","2021-08-26","2021-08-27","2021-08-28","2021-08-29","2021-08-30","2021-08-31","2021-09-01","2021-09-02","2021-09-03","2021-09-04","2021-09-05","2021-09-06","2021-09-07","2021-09-08","2021-09-09","2021-09-10","2021-09-11","2021-09-12","2021-09-13","2021-09-14","2021-09-15",{"$f":"IZ9+1","v":"2021-09-16"},"2021-09-17","2021-09-18","2021-09-19","2021-09-20","2021-09-21","2021-09-22","2021-09-23","2021-09-24","2021-09-25","2021-09-26","2021-09-27","2021-09-28","2021-09-29","2021-09-30","2021-10-01","2021-10-02","2021-10-03","2021-10-04","2021-10-05","2021-10-06","2021-10-07","2021-10-08","2021-10-09","2021-10-10","2021-10-11","2021-10-12","2021-10-13","2021-10-14","2021-10-15","2021-10-16","2021-10-17","2021-10-18","2021-10-19","2021-10-20","2021-10-21","2021-10-22","2021-10-23","2021-10-24","2021-10-25","2021-10-26","2021-10-27","2021-10-28","2021-10-29","2021-10-30","2021-10-31","2021-11-01","2021-11-02","2021-11-03","2021-11-04","2021-11-05","2021-11-06","2021-11-07","2021-11-08","2021-11-09","2021-11-10","2021-11-11","2021-11-12","2021-11-13","2021-11-14","2021-11-15","2021-11-16","2021-11-17","2021-11-18",{"$f":"LL9+1","v":"2021-11-19"},"2021-11-20","2021-11-21","2021-11-22","2021-11-23","2021-11-24","2021-11-25","2021-11-26","2021-11-27","2021-11-28","2021-11-29","2021-11-30","2021-12-01","2021-12-02","2021-12-03","2021-12-04","2021-12-05","2021-12-06","2021-12-07","2021-12-08","2021-12-09","2021-12-10","2021-12-11","2021-12-12","2021-12-13","2021-12-14","2021-12-15","2021-12-16","2021-12-17","2021-12-18","2021-12-19","2021-12-20","2021-12-21","2021-12-22","2021-12-23","2021-12-24","2021-12-25","2021-12-26","2021-12-27","2021-12-28","2021-12-29","2021-12-30","2021-12-31","2022-01-01","2022-01-02","2022-01-03","2022-01-04","2022-01-05","2022-01-06","2022-01-07","2022-01-08","2022-01-09","2022-01-10","2022-01-11","2022-01-12","2022-01-13","2022-01-14","2022-01-15","2022-01-16","2022-01-17","2022-01-18","2022-01-19","2022-01-20","2022-01-21",{"$f":"NX9+1","v":"2022-01-22"},"2022-01-23","2022-01-24","2022-01-25","2022-01-26","2022-01-27","2022-01-28","2022-01-29","2022-01-30","2022-01-31","2022-02-01","2022-02-02","2022-02-03","2022-02-04","2022-02-05","2022-02-06","2022-02-07","2022-02-08","2022-02-09","2022-02-10"]
[null,"Jour : ",{"$f":"C9","v":"2021-01-01"},{"$f":"D9","v":"2021-01-02"},{"$f":"E9","v":"2021-01-03"},"2021-01-04","2021-01-05","2021-01-06","2021-01-07","2021-01-08","2021-01-09","2021-01-10","2021-01-11","2021-01-12","2021-01-13","2021-01-14","2021-01-15","2021-01-16","2021-01-17","2021-01-18","2021-01-19","2021-01-20","2021-01-21","2021-01-22","2021-01-23","2021-01-24","2021-01-25","2021-01-26","2021-01-27","2021-01-28","2021-01-29","2021-01-30","2021-01-31","2021-02-01","2021-02-02","2021-02-03","2021-02-04","2021-02-05","2021-02-06","2021-02-07","2021-02-08","2021-02-09","2021-02-10","2021-02-11","2021-02-12","2021-02-13","2021-02-14","2021-02-15","2021-02-16","2021-02-17","2021-02-18","2021-02-19","2021-02-20","2021-02-21","2021-02-22","2021-02-23","2021-02-24","2021-02-25","2021-02-26","2021-02-27","2021-02-28","2021-03-01","2021-03-02","2021-03-03","2021-03-04","2021-03-05","2021-03-06","2021-03-07",{"$f":"BQ9","v":"2021-03-08"},"2021-03-09","2021-03-10","2021-03-11","2021-03-12","2021-03-13","2021-03-14","2021-03-15","2021-03-16","2021-03-17","2021-03-18","2021-03-19","2021-03-20","2021-03-21","2021-03-22","2021-03-23","2021-03-24","2021-03-25","2021-03-26","2021-03-27","2021-03-28","2021-03-29","2021-03-30","2021-03-31","2021-04-01","2021-04-02","2021-04-03","2021-04-04","2021-04-05","2021-04-06","2021-04-07","2021-04-08","2021-04-09","2021-04-10","2021-04-11","2021-04-12","2021-04-13","2021-04-14","2021-04-15","2021-04-16","2021-04-17","2021-04-18","2021-04-19","2021-04-20","2021-04-21","2021-04-22","2021-04-23","2021-04-24","2021-04-25","2021-04-26","2021-04-27","2021-04-28","2021-04-29","2021-04-30","2021-05-01","2021-05-02","2021-05-03","2021-05-04","2021-05-05","2021-05-06","2021-05-07","2021-05-08","2021-05-09","2021-05-10",{"$f":"EC9","v":"2021-05-11"},"2021-05-12","2021-05-13","2021-05-14","2021-05-15","2021-05-16","2021-05-17","2021-05-18","2021-05-19","2021-05-20","2021-05-21","2021-05-22","2021-05-23","2021-05-24","2021-05-25","2021-05-26","2021-05-27","2021-05-28","2021-05-29","2021-05-30","2021-05-31","2021-06-01","2021-06-02","2021-06-03","2021-06-04","2021-06-05","2021-06-06","2021-06-07","2021-06-08","2021-06-09","2021-06-10","2021-06-11","2021-06-12","2021-06-13","2021-06-14","2021-06-15","2021-06-16","2021-06-17","2021-06-18","2021-06-19","2021-06-20","2021-06-21","2021-06-22","2021-06-23","2021-06-24","2021-06-25","2021-06-26","2021-06-27","2021-06-28","2021-06-29","2021-06-30","2021-07-01","2021-07-02","2021-07-03","2021-07-04","2021-07-05","2021-07-06","2021-07-07","2021-07-08","2021-07-09","2021-07-10","2021-07-11","2021-07-12","2021-07-13",{"$f":"GO9","v":"2021-07-14"},"2021-07-15","2021-07-16","2021-07-17","2021-07-18","2021-07-19","2021-07-20","2021-07-21","2021-07-22","2021-07-23","2021-07-24","2021-07-25","2021-07-26","2021-07-27","2021-07-28","2021-07-29","2021-07-30","2021-07-31","2021-08-01","2021-08-02","2021-08-03","2021-08-04","2021-08-05","2021-08-06","2021-08-07","2021-08-08","2021-08-09","2021-08-10","2021-08-11","2021-08-12","2021-08-13","2021-08-14","2021-08-15","2021-08-16","2021-08-17","2021-08-18","2021-08-19","2021-08-20","2021-08-21","2021-08-22","2021-08-23","2021-08-24","2021-08-25","2021-08-26","2021-08-27","2021-08-28","2021-08-29","2021-08-30","2021-08-31","2021-09-01","2021-09-02","2021-09-03","2021-09-04","2021-09-05","2021-09-06","2021-09-07","2021-09-08","2021-09-09","2021-09-10","2021-09-11","2021-09-12","2021-09-13","2021-09-14","2021-09-15",{"$f":"JA9","v":"2021-09-16"},"2021-09-17","2021-09-18","2021-09-19","2021-09-20","2021-09-21","2021-09-22","2021-09-23","2021-09-24","2021-09-25","2021-09-26","2021-09-27","2021-09-28","2021-09-29","2021-09-30","2021-10-01","2021-10-02","2021-10-03","2021-10-04","2021-10-05","2021-10-06","2021-10-07","2021-10-08","2021-10-09","2021-10-10","2021-10-11","2021-10-12","2021-10-13","2021-10-14","2021-10-15","2021-10-16","2021-10-17","2021-10-18","2021-10-19","2021-10-20","2021-10-21","2021-10-22","2021-10-23","2021-10-24","2021-10-25","2021-10-26","2021-10-27","2021-10-28","2021-10-29","2021-10-30","2021-10-31","2021-11-01","2021-11-02","2021-11-03","2021-11-04","2021-11-05","2021-11-06","2021-11-07","2021-11-08","2021-11-09","2021-11-10","2021-11-11","2021-11-12","2021-11-13","2021-11-14","2021-11-15","2021-11-16","2021-11-17","2021-11-18",{"$f":"LM9","v":"2021-11-19"},"2021-11-20","2021-11-21","2021-11-22","2021-11-23","2021-11-24","2021-11-25","2021-11-26","2021-11-27","2021-11-28","2021-11-29","2021-11-30","2021-12-01","2021-12-02","2021-12-03","2021-12-04","2021-12-05","2021-12-06","2021-12-07","2021-12-08","2021-12-09","2021-12-10","2021-12-11","2021-12-12","2021-12-13","2021-12-14","2021-12-15","2021-12-16","2021-12-17","2021-12-18","2021-12-19","2021-12-20","2021-12-21","2021-12-22","2021-12-23","2021-12-24","2021-12-25","2021-12-26","2021-12-27","2021-12-28","2021-12-29","2021-12-30","2021-12-31","2022-01-01","2022-01-02","2022-01-03","2022-01-04","2022-01-05","2022-01-06","2022-01-07","2022-01-08","2022-01-09","2022-01-10","2022-01-11","2022-01-12","2022-01-13","2022-01-14","2022-01-15","2022-01-16","2022-01-17","2022-01-18","2022-01-19","2022-01-20","2022-01-21",{"$f":"NY9","v":"2022-01-22"},"2022-01-23","2022-01-24","2022-01-25","2022-01-26","2022-01-27","2022-01-28","2022-01-29","2022-01-30","2022-01-31","2022-02-01","2022-02-02","2022-02-03","2022-02-04","2022-02-05","2022-02-06","2022-02-07","2022-02-08","2022-02-09","2022-02-10"]
[null,"00:15",null,null,null,null,null,null,null,null,null,null,null,null,null,null,null,null,null,null,null,null,null,null,null,null,null,null,null,null,null,null,null,null,null,null,null,null,null,null,null,null,null,null,null,null,null,null,null,null,null,null,null,null,null,null,null,null,null,null,null,null,null,null,null,null,null,null,null,null,null,null,null,null,null,null,null,null,null,null,null,null,null,null,null,null,null,null,null,null,null,null,null,null,null,null,null,null,null,null,null,null,null,null,null,null,null,null,null,null,null,null,null,null,null,null,null,null,null,null,null,null,null,null,null,null,null,null,null,null,null,null,null,null,null,null,null,null,null,null,null,null,null,null,null,null,null,null,null,null,null,null,null,null,null,null,null,null,null,null,null,null,null,null,null,null,null,null,null,null,null,null,null,null,null,null,null,null,null,null,null,null,null,null,null,null,null,null,null,null,null,null,null,null,null,null,null,null,null,null,null,null,null,null,null,null,null,null,null,null,null,null,null,null,null,null,null,null,null,null,null,null,null,null,null,null,null,null,null,null,null,null,null,null,null,null,null,null,null,null,null,null,null,null,null,null,null,null,null,null,null,null,null,null,null,null,null,null,null,null,null,null,null,null,null,null,null,null,null,null,null,null,null,null,null,null,null,null,null,null,null,null,null,null,null,null,null,null,null,null,null,null,null,null,null,null,null,null,null,null,null,null,null,null,null,null,null,null,null,null,null,null,null,null,null,null,null,null,null,null,null,null,null,null,null,null,null,null,null,null,null,null,null,null,null,null,null,null,null,null,null,null,null,null,null,null,null,null,null,null,null,null,null,null,null,null,null,null,null,null,null,null,null,null,null,null,null,null,null,null,null,null,null,null,null,null,null,null,null,null,null,null,null,null,null,null,null,null,null,null,null,null,null,null,null,null,null,null,null,null,null,null,null,null,null,null,null,null,null,null,"Jours Fériés Français"]
[null,"00:30",null,null,null,null,null,null,null,null,null,null,null,null,null,null,null,null,null,null,null,null,null,null,null,null,null,null,null,null,null,null,null,null,null,null,null,null,null,null,null,null,null,null,null,null,null,null,null,null,null,null,null,null,null,null,null,null,null,null,null,null,null,null,null,null,null,null,null,null,null,null,null,null,null,null,null,null,null,null,null,null,null,null,null,null,null,null,null,null,null,null,null,null,null,null,null,null,null,null,null,null,null,null,null,null,null,null,null,null,null,null,null,7,4,null,null,null,null,null,null,null,null,null,null,null,null,null,null,null,null,null,null,null,null,null,null,null,null,null,null,null,null,null,null,null,null,null,null,null,null,null,null,null,null,null,null,null,null,null,null,null,null,null,null,null,null,null,null,null,null,null,null,null,null,null,null,null,null,null,null,null,null,null,null,null,null,null,null,null,null,null,null,null,null,null,null,null,null,null,null,null,null,null,null,null,null,null,null,null,null,null,null,null,null,null,null,null,null,null,null,null,null,null,null,null,null,null,null,null,null,null,null,null,null,null,null,null,null,null,null,null,null,null,null,null,null,null,null,null,null,null,null,null,null,null,null,null,null,null,null,null,null,null,null,null,null,null,null,null,null,null,null,null,null,null,null,null,null,null,null,null,null,null,null,null,null,null,null,null,null,null,null,null,null,null,null,null,null,null,null,null,null,null,null,null,null,null,null,null,null,null,null,null,null,null,null,null,null,null,null,null,null,null,null,null,null,null,null,null,null,null,null,null,null,null,null,null,null,null,null,null,null,null,null,null,null,null,null,null,null,null,null,null,null,null,null,null,null,null,null,null,null,null,null,null,null,null,null,null,null,null,null,null,null,null,null,null,null,null,null,null,null,null,null,null,null,null,null,null,null,null,null,null,null,null,null,null,null,null,null,null,null,null,null,null,null,null,null,null,{"$f":"DATE($B$6,1,1)","v":"2021-01-01"},"1er jour de l'an"]
[null,"00:45",null,null,null,null,null,null,null,null,null,null,null,null,null,null,null,null,null,null,null,null,null,null,null,null,null,null,null,null,null,null,null,null,null,null,null,null,null,null,null,null,null,null,null,null,null,null,null,null,null,null,null,null,null,null,null,null,null,null,null,null,null,null,null,null,null,null,null,null,null,null,null,null,null,null,null,null,null,null,null,null,null,null,null,null,null,null,null,null,null,null,null,null,null,null,null,null,null,null,null,null,null,null,null,null,null,null,null,null,null,null,null,null,null,null,null,null,null,null,null,null,null,null,null,null,null,null,null,null,null,null,null,null,null,null,null,null,null,null,null,null,null,null,null,null,null,null,null,null,null,null,null,null,null,null,null,null,null,null,null,null,null,null,null,null,null,null,null,null,null,null,null,null,null,null,null,null,null,null,null,null,null,null,null,null,null,null,null,null,null,null,null,null,null,null,null,null,null,null,null,null,null,null,null,null,null,null,null,null,null,null,null,null,null,null,null,null,null,null,null,null,null,null,null,null,null,null,null,null,null,null,null,null,null,null,null,null,null,null,null,null,null,null,null,null,null,null,null,null,null,null,null,null,null,null,null,null,null,null,null,null,null,null,null,null,null,null,null,null,null,null,null,null,null,null,null,null,null,null,null,null,null,null,null,null,null,null,null,null,null,null,null,null,null,null,null,null,null,null,null,null,null,null,null,null,null,null,null,null,null,null,null,null,null,null,null,null,null,null,null,null,null,null,null,null,null,null,null,null,null,null,null,null,null,null,null,null,null,null,null,null,null,null,null,null,null,null,null,null,null,null,null,null,null,null,null,null,null,null,null,null,null,null,null,null,null,null,null,null,null,null,null,null,null,null,null,null,null,null,null,null,null,null,null,null,null,null,null,null,null,null,null,null,null,null,null,null,null,null,null,null,null,null,null,null,null,null,null,null,{"$f":"DATE(YEAR($OU$12),3,29.56+0.979*MOD(204-11*MOD(YEAR($OU$12),19),30)-WEEKDAY(DATE(YEAR($OU$12),3,28.56+0.979*MOD(204-11*MOD(YEAR($OU$12),19),30))))","v":"2021-04-04"},"Pâques","ou",{"$f":"ROUND(DATE(YEAR(Sommaire!$J$11),4,MOD(234-11*MOD(YEAR(Sommaire!$J$11),19),30))/7,0)*7-6","v":"1900-04-15"}]
[null,"01:00",null,null,null,null,null,null,null,null,null,null,null,null,null,null,null,null,null,null,null,null,null,null,null,null,null,null,null,null,null,null,null,null,null,null,null,null,null,null,null,null,null,null,null,null,null,null,null,null,null,null,null,null,null,null,null,null,null,null,null,null,null,null,null,null,null,null,null,null,null,null,null,null,null,null,null,null,null,null,null,null,null,null,null,null,null,null,null,null,null,null,null,null,null,null,null,null,null,null,null,null,null,null,null,null,null,null,null,null,null,null,null,null,null,null,null,null,null,null,null,null,null,null,null,null,null,null,null,null,null,null,null,null,null,null,null,null,null,null,null,null,null,null,null,null,null,null,null,null,null,null,null,null,null,null,null,null,null,null,null,null,null,null,null,null,null,null,null,null,null,null,null,null,null,null,null,null,null,null,null,null,null,null,null,null,null,null,null,null,null,null,null,null,null,null,null,null,null,null,null,null,null,null,null,null,null,null,null,null,null,null,null,null,null,null,null,null,null,null,null,null,null,null,null,null,null,null,null,null,null,null,null,null,null,null,null,null,null,null,null,null,null,null,null,null,null,null,null,null,null,null,null,null,null,null,null,null,null,null,null,null,null,null,null,null,null,null,null,null,null,null,null,null,null,null,null,null,null,null,null,null,null,null,null,null,null,null,null,null,null,null,null,null,null,null,null,null,null,null,null,null,null,null,null,null,null,null,null,null,null,null,null,null,null,null,null,null,null,null,null,null,null,null,null,null,null,null,null,null,null,null,null,null,null,null,null,null,null,null,null,null,null,null,null,null,null,null,null,null,null,null,null,null,null,null,null,null,null,null,null,null,null,null,null,null,null,null,null,null,null,null,null,null,null,null,null,null,null,null,null,null,null,null,null,null,null,null,null,null,null,null,null,null,null,null,null,null,null,null,null,null,null,null,null,null,null,null,null,null,{"$f":"OU13+1","v":"2021-04-05"},"Lundi de Pâques"]
[null,"01:15",null,null,null,null,null,null,null,null,null,null,null,null,null,null,null,null,null,null,null,null,null,null,null,null,null,null,null,null,null,null,null,null,null,null,null,null,null,null,null,null,null,null,null,null,null,null,null,null,null,null,null,null,null,null,null,null,null,null,null,null,null,null,null,null,null,null,null,null,null,null,null,null,null,null,null,null,null,null,null,null,null,null,null,null,null,null,null,null,null,null,null,null,null,null,null,null,null,null,null,null,null,null,null,null,null,null,null,null,null,null,null,null,null,null,null,null,null,null,null,null,null,null,null,null,null,null,null,null,null,null,null,null,null,null,null,null,null,null,null,null,null,null,null,null,null,null,null,null,null,null,null,null,null,null,null,null,null,null,null,null,null,null,null,null,null,null,null,null,null,null,null,null,null,null,null,null,null,null,null,null,null,null,null,null,null,null,null,null,null,null,null,null,null,null,null,null,null,null,null,null,null,null,null,null,null,null,null,null,null,null,null,null,null,null,null,null,null,null,null,null,null,null,null,null,null,null,null,null,null,null,null,null,null,null,null,null,null,null,null,null,null,null,null,null,null,null,null,null,null,null,null,null,null,null,null,null,null,null,null,null,null,null,null,null,null,null,null,null,null,null,null,null,null,null,null,null,null,null,null,null,null,null,null,null,null,null,null,null,null,null,null,null,null,null,null,null,null,null,null,null,null,null,null,null,null,null,null,null,null,null,null,null,null,null,null,null,null,null,null,null,null,null,null,null,null,null,null,null,null,null,null,null,null,null,null,null,null,null,null,null,null,null,null,null,null,null,null,null,null,null,null,null,null,null,null,null,null,null,null,null,null,null,null,null,null,null,null,null,null,null,null,null,null,null,null,null,null,null,null,null,null,null,null,null,null,null,null,null,null,null,null,null,null,null,null,null,null,null,null,null,null,null,null,null,null,null,null,null,{"$f":"DATE(YEAR($OU$12),5,1)","v":"2021-05-01"},"Fête du travail"]
[null,"01:30",null,null,null,null,null,null,null,null,null,null,null,null,null,null,null,null,null,null,null,null,null,null,null,null,null,null,null,null,null,null,null,null,null,null,null,null,null,null,null,null,null,null,null,null,null,null,null,null,null,null,null,null,null,null,null,null,null,null,null,null,null,null,null,null,null,null,null,null,null,null,null,null,null,null,null,null,null,null,null,null,null,null,null,null,null,null,null,null,null,null,null,null,null,null,null,null,null,null,null,null,null,null,null,null,null,null,null,null,null,null,null,null,null,null,null,null,null,null,null,null,null,null,null,null,null,null,null,null,null,null,null,null,null,null,null,null,null,null,null,null,null,null,null,null,null,null,null,null,null,null,null,null,null,null,null,null,null,null,null,null,null,null,null,null,null,null,null,null,null,null,null,null,null,null,null,null,null,null,null,null,null,null,null,null,null,null,null,null,null,null,null,null,null,null,null,null,null,null,null,null,null,null,null,null,null,null,null,null,null,null,null,null,null,null,null,null,null,null,null,null,null,null,null,null,null,null,null,null,null,null,null,null,null,null,null,null,null,null,null,null,null,null,null,null,null,null,null,null,null,null,null,null,null,null,null,null,null,null,null,null,null,null,null,null,null,null,null,null,null,null,null,null,null,null,null,null,null,null,null,null,null,null,null,null,null,null,null,null,null,null,null,null,null,null,null,null,null,null,null,null,null,null,null,null,null,null,null,null,null,null,null,null,null,null,null,null,null,null,null,null,null,null,null,null,null,null,null,null,null,null,null,null,null,null,null,null,null,null,null,null,null,null,null,null,null,null,null,null,null,null,null,null,null,null,null,null,null,null,null,null,null,null,null,null,null,null,null,null,null,null,null,null,null,null,null,null,null,null,null,null,null,null,null,null,null,null,null,null,null,null,null,null,null,null,null,null,null,null,null,null,null,null,null,null,null,null,null,null,{"$f":"DATE(YEAR($OU$12),5,8)","v":"2021-05-08"},"Armistice 1945"]
[null,"01:45",null,null,null,null,null,null,null,null,null,null,null,null,null,null,null,null,null,null,null,null,null,null,null,null,null,null,null,null,null,null,null,null,null,null,null,null,null,null,null,null,null,null,null,null,null,null,null,null,null,null,null,null,null,null,null,null,null,null,null,null,null,null,null,null,null,null,null,null,null,null,null,null,null,null,null,null,null,null,null,null,null,null,null,null,null,null,null,null,null,null,null,null,null,null,null,null,null,null,null,null,null,null,null,null,null,null,null,null,null,null,null,null,null,null,null,null,null,null,null,null,null,null,null,null,null,null,null,null,null,null,null,null,null,null,null,null,null,null,null,null,null,null,null,null,null,null,null,null,null,null,null,null,null,null,null,null,null,null,null,null,null,null,null,null,null,null,null,null,null,null,null,null,null,null,null,null,null,null,null,null,null,null,null,null,null,null,null,null,null,null,null,null,null,null,null,null,null,null,null,null,null,null,null,null,null,null,null,null,null,null,null,null,null,null,null,null,null,null,null,null,null,null,null,null,null,null,null,null,null,null,null,null,null,null,null,null,null,null,null,null,null,null,null,null,null,null,null,null,null,null,null,null,null,null,null,null,null,null,null,null,null,null,null,null,null,null,null,null,null,null,null,null,null,null,null,null,null,null,null,null,null,null,null,null,null,null,null,null,null,null,null,null,null,null,null,null,null,null,null,null,null,null,null,null,null,null,null,null,null,null,null,null,null,null,null,null,null,null,null,null,null,null,null,null,null,null,null,null,null,null,null,null,null,null,null,null,null,null,null,null,null,null,null,null,null,null,null,null,null,null,null,null,null,null,null,null,null,null,null,null,null,null,null,null,null,null,null,null,null,null,null,null,null,null,null,null,null,null,null,null,null,null,null,null,null,null,null,null,null,null,null,null,null,null,null,null,null,null,null,null,null,null,null,null,null,null,null,null,{"$f":"OU14+39","v":"2021-05-14"},"Ascension"]
[null,"02:00",null,null,null,null,null,null,null,null,null,null,null,null,null,null,null,null,null,null,null,null,null,null,null,null,null,null,null,null,null,null,null,null,null,null,null,null,null,null,null,null,null,null,null,null,null,null,null,null,null,null,null,null,null,null,null,null,null,null,null,null,null,null,null,null,null,null,null,null,null,null,null,null,null,null,null,null,null,null,null,null,null,null,null,null,null,null,null,null,null,null,null,null,null,null,null,null,null,null,null,null,null,null,null,null,null,null,null,null,null,null,null,null,null,null,null,null,null,null,null,null,null,null,null,null,null,null,null,null,null,null,null,null,null,null,null,null,null,null,null,null,null,null,null,null,null,null,null,null,null,null,null,null,null,null,null,null,null,null,null,null,null,null,null,null,null,null,null,null,null,null,null,null,null,null,null,null,null,null,null,null,null,null,null,null,null,null,null,null,null,null,null,null,null,null,null,null,null,null,null,null,null,null,null,null,null,null,null,null,null,null,null,null,null,null,null,null,null,null,null,null,null,null,null,null,null,null,null,null,null,null,null,null,null,null,null,null,null,null,null,null,null,null,null,null,null,null,null,null,null,null,null,null,null,null,null,null,null,null,null,null,null,null,null,null,null,null,null,null,null,null,null,null,null,null,null,null,null,null,null,null,null,null,null,null,null,null,null,null,null,null,null,null,null,null,null,null,null,null,null,null,null,null,null,null,null,null,null,null,null,null,null,null,null,null,null,null,null,null,null,null,null,null,null,null,null,null,null,null,null,null,null,null,null,null,null,null,null,null,null,null,null,null,null,null,null,null,null,null,null,null,null,null,null,null,null,null,null,null,null,null,null,null,null,null,null,null,null,null,null,null,null,null,null,null,null,null,null,null,null,null,null,null,null,null,null,null,null,null,null,null,null,null,null,null,null,null,null,null,null,null,null,null,null,null,null,null,null,null,{"$f":"OU14+49","v":"2021-05-24"},"Pentecôte"]
[null,"02:15",null,null,null,null,null,null,null,null,null,null,null,null,null,null,null,null,null,null,null,null,null,null,null,null,null,null,null,null,null,null,null,null,null,null,null,null,null,null,null,null,null,null,null,null,null,null,null,null,null,null,null,null,null,null,null,null,null,null,null,null,null,null,null,null,null,null,null,null,null,null,null,null,null,null,null,null,null,null,null,null,null,null,null,null,null,null,null,null,null,null,null,null,null,null,null,null,null,null,null,null,null,null,null,null,null,null,null,null,null,null,null,null,null,null,null,null,null,null,null,null,null,null,null,null,null,null,null,null,null,null,null,null,null,null,null,null,null,null,null,null,null,null,null,null,null,null,null,null,null,null,null,null,null,null,null,null,null,null,null,null,null,null,null,null,null,null,null,null,null,null,null,null,null,null,null,null,null,null,null,null,null,null,null,null,null,null,null,null,null,null,null,null,null,null,null,null,null,null,null,null,null,null,null,null,null,null,null,null,null,null,null,null,null,null,null,null,null,null,null,null,null,null,null,null,null,null,null,null,null,null,null,null,null,null,null,null,null,null,null,null,null,null,null,null,null,null,null,null,null,null,null,null,null,null,null,null,null,null,null,null,null,null,null,null,null,null,null,null,null,null,null,null,null,null,null,null,null,null,null,null,null,null,null,null,null,null,null,null,null,null,null,null,null,null,null,null,null,null,null,null,null,null,null,null,null,null,null,null,null,null,null,null,null,null,null,null,null,null,null,null,null,null,null,null,null,null,null,null,null,null,null,null,null,null,null,null,null,null,null,null,null,null,null,null,null,null,null,null,null,null,null,null,null,null,null,null,null,null,null,null,null,null,null,null,null,null,null,null,null,null,null,null,null,null,null,null,null,null,null,null,null,null,null,null,null,null,null,null,null,null,null,null,null,null,null,null,null,null,null,null,null,null,null,null,null,null,null,null,{"$f":"OU14+50","v":"2021-05-25"},"Lundi de Pentec^pte"]
[null,"02:30",null,null,null,null,null,null,null,null,null,null,null,null,null,null,null,null,null,null,null,null,null,null,null,null,null,null,null,null,null,null,null,null,null,null,null,null,null,null,null,null,null,null,null,null,null,null,null,null,null,null,null,null,null,null,null,null,null,null,null,null,null,null,null,null,null,null,null,null,null,null,null,null,null,null,null,null,null,null,null,null,null,null,null,null,null,null,null,null,null,null,null,null,null,null,null,null,null,null,null,null,null,null,null,null,null,null,null,null,null,null,null,null,null,null,null,null,null,null,null,null,null,null,null,null,null,null,null,null,null,null,null,null,null,null,null,null,null,null,null,null,null,null,null,null,null,null,null,null,null,null,null,null,null,null,null,null,null,null,null,null,null,null,null,null,null,null,null,null,null,null,null,null,null,null,null,null,null,null,null,null,null,null,null,null,null,null,null,null,null,null,null,null,null,null,null,null,null,null,null,null,null,null,null,null,null,null,null,null,null,null,null,null,null,null,null,null,null,null,null,null,null,null,null,null,null,null,null,null,null,null,null,null,null,null,null,null,null,null,null,null,null,null,null,null,null,null,null,null,null,null,null,null,null,null,null,null,null,null,null,null,null,null,null,null,null,null,null,null,null,null,null,null,null,null,null,null,null,null,null,null,null,null,null,null,null,null,null,null,null,null,null,null,null,null,null,null,null,null,null,null,null,null,null,null,null,null,null,null,null,null,null,null,null,null,null,null,null,null,null,null,null,null,null,null,null,null,null,null,null,null,null,null,null,null,null,null,null,null,null,null,null,null,null,null,null,null,null,null,null,null,null,null,null,null,null,null,null,null,null,null,null,null,null,null,null,null,null,null,null,null,null,null,null,null,null,null,null,null,null,null,null,null,null,null,null,null,null,null,null,null,null,null,null,null,null,null,null,null,null,null,null,null,null,null,null,null,null,null,{"$f":"DATE(YEAR($OU$12),7,14)","v":"2021-07-14"},"Fête Nationnale"]
[null,"02:45",null,null,null,null,null,null,null,null,null,null,null,null,null,null,null,null,null,null,null,null,null,null,null,null,null,null,null,null,null,null,null,null,null,null,null,null,null,null,null,null,null,null,null,null,null,null,null,null,null,null,null,null,null,null,null,null,null,null,null,null,null,null,null,null,null,null,null,null,null,null,null,null,null,null,null,null,null,null,null,null,null,null,null,null,null,null,null,null,null,null,null,null,null,null,null,null,null,null,null,null,null,null,null,null,null,null,null,null,null,null,null,null,null,null,null,null,null,null,null,null,null,null,null,null,null,null,null,null,null,null,null,null,null,null,null,null,null,null,null,null,null,null,null,null,null,null,null,null,null,null,null,null,null,null,null,null,null,null,null,null,null,null,null,null,null,null,null,null,null,null,null,null,null,null,null,null,null,null,null,null,null,null,null,null,null,null,null,null,null,null,null,null,null,null,null,null,null,null,null,null,null,null,null,null,null,null,null,null,null,null,null,null,null,null,null,null,null,null,null,null,null,null,null,null,null,null,null,null,null,null,null,null,null,null,null,null,null,null,null,null,null,null,null,null,null,null,null,null,null,null,null,null,null,null,null,null,null,null,null,null,null,null,null,null,null,null,null,null,null,null,null,null,null,null,null,null,null,null,null,null,null,null,null,null,null,null,null,null,null,null,null,null,null,null,null,null,null,null,null,null,null,null,null,null,null,null,null,null,null,null,null,null,null,null,null,null,null,null,null,null,null,null,null,null,null,null,null,null,null,null,null,null,null,null,null,null,null,null,null,null,null,null,null,null,null,null,null,null,null,null,null,null,null,null,null,null,null,null,null,null,null,null,null,null,null,null,null,null,null,null,null,null,null,null,null,null,null,null,null,null,null,null,null,null,null,null,null,null,null,null,null,null,null,null,null,null,null,null,null,null,null,null,null,null,null,null,null,null,{"$f":"DATE(YEAR($OU$12),8,15)","v":"2021-08-15"},"Assomption"]
[null,"03:00",null,null,null,null,null,null,null,null,null,null,null,null,null,null,null,null,null,null,null,null,null,null,null,null,null,null,null,null,null,null,null,null,null,null,null,null,null,null,null,null,null,null,null,null,null,null,null,null,null,null,null,null,null,null,null,null,null,null,null,null,null,null,null,null,null,null,null,null,null,null,null,null,null,null,null,null,null,null,null,null,null,null,null,null,null,null,null,null,null,null,null,null,null,null,null,null,null,null,null,null,null,null,null,null,null,null,null,null,null,null,null,null,null,null,null,null,null,null,null,null,null,null,null,null,null,null,null,null,null,null,null,null,null,null,null,null,null,null,null,null,null,null,null,null,null,null,null,null,null,null,null,null,null,null,null,null,null,null,null,null,null,null,null,null,null,null,null,null,null,null,null,null,null,null,null,null,null,null,null,null,null,null,null,null,null,null,null,null,null,null,null,null,null,null,null,null,null,null,null,null,null,null,null,null,null,null,null,null,null,null,null,null,null,null,null,null,null,null,null,null,null,null,null,null,null,null,null,null,null,null,null,null,null,null,null,null,null,null,null,null,null,null,null,null,null,null,null,null,null,null,null,null,null,null,null,null,null,null,null,null,null,null,null,null,null,null,null,null,null,null,null,null,null,null,null,null,null,null,null,null,null,null,null,null,null,null,null,null,null,null,null,null,null,null,null,null,null,null,null,null,null,null,null,null,null,null,null,null,null,null,null,null,null,null,null,null,null,null,null,null,null,null,null,null,null,null,null,null,null,null,null,null,null,null,null,null,null,null,null,null,null,null,null,null,null,null,null,null,null,null,null,null,null,null,null,null,null,null,null,null,null,null,null,null,null,null,null,null,null,null,null,null,null,null,null,null,null,null,null,null,null,null,null,null,null,null,null,null,null,null,null,null,null,null,null,null,null,null,null,null,null,null,null,null,null,null,null,null,{"$f":"DATE(YEAR($OU$12),11,1)","v":"2021-11-01"},"Tous Saint"]
[null,"03:15",null,null,null,null,null,null,null,null,null,null,null,null,null,null,null,null,null,null,null,null,null,null,null,null,null,null,null,null,null,null,null,null,null,null,null,null,null,null,null,null,null,null,null,null,null,null,null,null,null,null,null,null,null,null,null,null,null,null,null,null,null,null,null,null,null,null,null,null,null,null,null,null,null,null,null,null,null,null,null,null,null,null,null,null,null,null,null,null,null,null,null,null,null,null,null,null,null,null,null,null,null,null,null,null,null,null,null,null,null,null,null,null,null,null,null,null,null,null,null,null,null,null,null,null,null,null,null,null,null,null,null,null,null,null,null,null,null,null,null,null,null,null,null,null,null,null,null,null,null,null,null,null,null,null,null,null,null,null,null,null,null,null,null,null,null,null,null,null,null,null,null,null,null,null,null,null,null,null,null,null,null,null,null,null,null,null,null,null,null,null,null,null,null,null,null,null,null,null,null,null,null,null,null,null,null,null,null,null,null,null,null,null,null,null,null,null,null,null,null,null,null,null,null,null,null,null,null,null,null,null,null,null,null,null,null,null,null,null,null,null,null,null,null,null,null,null,null,null,null,null,null,null,null,null,null,null,null,null,null,null,null,null,null,null,null,null,null,null,null,null,null,null,null,null,null,null,null,null,null,null,null,null,null,null,null,null,null,null,null,null,null,null,null,null,null,null,null,null,null,null,null,null,null,null,null,null,null,null,null,null,null,null,null,null,null,null,null,null,null,null,null,null,null,null,null,null,null,null,null,null,null,null,null,null,null,null,null,null,null,null,null,null,null,null,null,null,null,null,null,null,null,null,null,null,null,null,null,null,null,null,null,null,null,null,null,null,null,null,null,null,null,null,null,null,null,null,null,null,null,null,null,null,null,null,null,null,null,null,null,null,null,null,null,null,null,null,null,null,null,null,null,null,null,null,null,null,null,null,{"$f":"DATE(YEAR($OU$12),11,11)","v":"2021-11-11"},"Armistice 19418"]
[null,"03:30",null,null,null,null,null,null,null,null,null,null,null,null,null,null,null,null,null,null,null,null,null,null,null,null,null,null,null,null,null,null,null,null,null,null,null,null,null,null,null,null,null,null,null,null,null,null,null,null,null,null,null,null,null,null,null,null,null,null,null,null,null,null,null,null,null,null,null,null,null,null,null,null,null,null,null,null,null,null,null,null,null,null,null,null,null,null,null,null,null,null,null,null,null,null,null,null,null,null,null,null,null,null,null,null,null,null,null,null,null,null,null,null,null,null,null,null,null,null,null,null,null,null,null,null,null,null,null,null,null,null,null,null,null,null,null,null,null,null,null,null,null,null,null,null,null,null,null,null,null,null,null,null,null,null,null,null,null,null,null,null,null,null,null,null,null,null,null,null,null,null,null,null,null,null,null,null,null,null,null,null,null,null,null,null,null,null,null,null,null,null,null,null,null,null,null,null,null,null,null,null,null,null,null,null,null,null,null,null,null,null,null,null,null,null,null,null,null,null,null,null,null,null,null,null,null,null,null,null,null,null,null,null,null,null,null,null,null,null,null,null,null,null,null,null,null,null,null,null,null,null,null,null,null,null,null,null,null,null,null,null,null,null,null,null,null,null,null,null,null,null,null,null,null,null,null,null,null,null,null,null,null,null,null,null,null,null,null,null,null,null,null,null,null,null,null,null,null,null,null,null,null,null,null,null,null,null,null,null,null,null,null,null,null,null,null,null,null,null,null,null,null,null,null,null,null,null,null,null,null,null,null,null,null,null,null,null,null,null,null,null,null,null,null,null,null,null,null,null,null,null,null,null,null,null,null,null,null,null,null,null,null,null,null,null,null,null,null,null,null,null,null,null,null,null,null,null,null,null,null,null,null,null,null,null,null,null,null,null,null,null,null,null,null,null,null,null,null,null,null,null,null,null,null,null,null,null,null,null,{"$f":"DATE(YEAR($OU$12),12,25)","v":"2021-12-25"},"Noël"]
[null,"03:45",null,null,null,null,null,null,null,null,null,null,null,null,null,null,null,null,null,null,null,null,null,null,null,null,null,null,null,null,null,null,null,null,null,null,null,null,null,null,null,null,null,null,null,null,null,null,null,null,null,null,null,null,null,null,null,null,null,null,null,null,null,null,null,null,null,null,null,null,null,null,null,null,null,null,null,null,null,null,null,null,null,null,null,null,null,null,null,null,null,null,null,null,null,null,null,null,null,null,null,null,null,null,null,null,null,null,null,null,null,null,null,null,null,null,null,null,null,null,null,null,null,null,null,null,null,null,null,null,null,null,null,null,null,null,null,null,null,null,null,null,null,null,null,null,null,null,null,null,null,null,null,null,null,null,null,null,null,null,null,null,null,null,null,null,null,null,null,null,null,null,null,null,null,null,null,null,null,null,null,null,null,null,null,null,null,null,null,null,null,null,null,null,null,null,null,null,null,null,null,null,null,null,null,null,null,null,null,null,null,null,null,null,null,null,null,null,null,null,null,null,null,null,null,null,null,null,null,null,null,null,null,null,null,null,null,null,null,null,null,null,null,null,null,null,null,null,null,null,null,null,null,null,null,null,null,null,null,null,null,null,null,null,null,null,null,null,null,null,null,null,null,null,null,null,null,null,null,null,null,null,null,null,null,null,null,null,null,null,null,null,null,null,null,null,null,null,null,null,null,null,null,null,null,null,null,null,null,null,null,null,null,null,null,null,null,null,null,null,null,null,null,null,null,null,null,null,null,null,null,null,null,null,null,null,null,null,null,null,null,null,null,null,null,null,null,null,null,null,null,null,null,null,null,null,null,null,null,null,null,null,null,null,null,null,null,null,null,null,null,null,null,null,null,null,null,null,null,null,null,null,null,null,null,null,null,null,null,null,null,null,null,null,null,null,null,null,null,null,null,null,null,null,null,null,null,null,null,null,{"$f":"DATE(YEAR($OU$12)+1,1,1)","v":"2022-01-01"}]
[null,"04:00",null,null,null,null,null,null,null,null,null,null,null,null,null,null,null,null,null,null,null,null,null,null,null,null,null,null,null,null,null,null,null,null,null,null,null,null,null,null,null,null,null,null,null,null,null,null,null,null,null,null,null,null,null,null,null,null,null,null,null,null,null,null,null,null,null,null,null,null,null,null,null,null,null,null,null,null,null,null,null,null,null,null,null,null,null,null,null,null,null,null,null,null,null,null,null,null,null,null,null,null,null,null,null,null,null,null,null,null,null,null,null,null,null,null,null,null,null,null,null,null,null,null,null,null,null,null,null,null,null,null,null,null,null,null,null,null,null,null,null,null,null,null,null,null,null,null,null,null,null,null,null,null,null,null,null,null,null,null,null,null,null,null,null,null,null,null,null,null,null,null,null,null,null,null,null,null,null,null,null,null,null,null,null,null,null,null,null,null,null,null,null,null,null,null,null,null,null,null,null,null,null,null,null,null,null,null,null,null,null,null,null,null,null,null,null,null,null,null,null,null,null,null,null,null,null,null,null,null,null,null,null,null,null,null,null,null,null,null,null,null,null,null,null,null,null,null,null,null,null,null,null,null,null,null,null,null,null,null,null,null,null,null,null,null,null,null,null,null,null,null,null,null,null,null,null,null,null,null,null,null,null,null,null,null,null,null,null,null,null,null,null,null,null,null,null,null,null,null,null,null,null,null,null,null,null,null,null,null,null,null,null,null,null,null,null,null,null,null,null,null,null,null,null,null,null,null,null,null,null,null,null,null,null,null,null,null,null,null,null,null,null,null,null,null,null,null,null,null,null,null,null,null,null,null,null,null,null,null,null,null,null,null,null,null,null,null,null,null,null,null,null,null,null,null,null,null,null,null,null,null,null,null,null,null,null,null,null,null,null,null,null,null,null,null,null,null,null,null,null,null,null,null,null,null,null,null,null,null,{"$f":"DATE(YEAR($OU$12)+1,3,29.56+0.979*MOD(204-11*MOD(YEAR($OU$12)+1,19),30)-WEEKDAY(DATE(YEAR($OU$12)+1,3,28.56+0.979*MOD(204-11*MOD(YEAR($OU$12)+1,19),30))))","v":"2022-04-17"},"Pâques"]
[null,"04:15",null,null,null,null,null,null,null,null,null,null,null,null,null,null,null,null,null,null,null,null,null,null,null,null,null,null,null,null,null,null,null,null,null,null,null,null,null,null,null,null,null,null,null,null,null,null,null,null,null,null,null,null,null,null,null,null,null,null,null,null,null,null,null,null,null,null,null,null,null,null,null,null,null,null,null,null,null,null,null,null,null,null,null,null,null,null,null,null,null,null,null,null,null,null,null,null,null,null,null,null,null,null,null,null,null,null,null,null,null,null,null,null,null,null,null,null,null,null,null,null,null,null,null,null,null,null,null,null,null,null,null,null,null,null,null,null,null,null,null,null,null,null,null,null,null,null,null,null,null,null,null,null,null,null,null,null,null,null,null,null,null,null,null,null,null,null,null,null,null,null,null,null,null,null,null,null,null,null,null,null,null,null,null,null,null,null,null,null,null,null,null,null,null,null,null,null,null,null,null,null,null,null,null,null,null,null,null,null,null,null,null,null,null,null,null,null,null,null,null,null,null,null,null,null,null,null,null,null,null,null,null,null,null,null,null,null,null,null,null,null,null,null,null,null,null,null,null,null,null,null,null,null,null,null,null,null,null,null,null,null,null,null,null,null,null,null,null,null,null,null,null,null,null,null,null,null,null,null,null,null,null,null,null,null,null,null,null,null,null,null,null,null,null,null,null,null,null,null,null,null,null,null,null,null,null,null,null,null,null,null,null,null,null,null,null,null,null,null,null,null,null,null,null,null,null,null,null,null,null,null,null,null,null,null,null,null,null,null,null,null,null,null,null,null,null,null,null,null,null,null,null,null,null,null,null,null,null,null,null,null,null,null,null,null,null,null,null,null,null,null,null,null,null,null,null,null,null,null,null,null,null,null,null,null,null,null,null,null,null,null,null,null,null,null,null,null,null,null,null,null,null,null,null,null,null,null,null,null,{"$f":"OU26+1","v":"2022-04-18"}]
[null,"04:30",null,null,null,null,null,null,null,null,null,null,null,null,null,null,null,null,null,null,null,null,null,null,null,null,null,null,null,null,null,null,null,null,null,null,null,null,null,null,null,null,null,null,null,null,null,null,null,null,null,null,null,null,null,null,null,null,null,null,null,null,null,null,null,null,null,null,null,null,null,null,null,null,null,null,null,null,null,null,null,null,null,null,null,null,null,null,null,null,null,null,null,null,null,null,null,null,null,null,null,null,null,null,null,null,null,null,null,null,null,null,null,null,null,null,null,null,null,null,null,null,null,null,null,null,null,null,null,null,null,null,null,null,null,null,null,null,null,null,null,null,null,null,null,null,null,null,null,null,null,null,null,null,null,null,null,null,null,null,null,null,null,null,null,null,null,null,null,null,null,null,null,null,null,null,null,null,null,null,null,null,null,null,null,null,null,null,null,null,null,null,null,null,null,null,null,null,null,null,null,null,null,null,null,null,null,null,null,null,null,null,null,null,null,null,null,null,null,null,null,null,null,null,null,null,null,null,null,null,null,null,null,null,null,null,null,null,null,null,null,null,null,null,null,null,null,null,null,null,null,null,null,null,null,null,null,null,null,null,null,null,null,null,null,null,null,null,null,null,null,null,null,null,null,null,null,null,null,null,null,null,null,null,null,null,null,null,null,null,null,null,null,null,null,null,null,null,null,null,null,null,null,null,null,null,null,null,null,null,null,null,null,null,null,null,null,null,null,null,null,null,null,null,null,null,null,null,null,null,null,null,null,null,null,null,null,null,null,null,null,null,null,null,null,null,null,null,null,null,null,null,null,null,null,null,null,null,null,null,null,null,null,null,null,null,null,null,null,null,null,null,null,null,null,null,null,null,null,null,null,null,null,null,null,null,null,null,null,null,null,null,null,null,null,null,null,null,null,null,null,null,null,null,null,null,null,null,null,null,{"$f":"DATE(YEAR($OU$12)+1,5,1)","v":"2022-05-01"}]
[null,"04:45",null,null,null,null,null,null,null,null,null,null,null,null,null,null,null,null,null,null,null,null,null,null,null,null,null,null,null,null,null,null,null,null,null,null,null,null,null,null,null,null,null,null,null,null,null,null,null,null,null,null,null,null,null,null,null,null,null,null,null,null,null,null,null,null,null,null,null,null,null,null,null,null,null,null,null,null,null,null,null,null,null,null,null,null,null,null,null,null,null,null,null,null,null,null,null,null,null,null,null,null,null,null,null,null,null,null,null,null,null,null,null,null,null,null,null,null,null,null,null,null,null,null,null,null,null,null,null,null,null,null,null,null,null,null,null,null,null,null,null,null,null,null,null,null,null,null,null,null,null,null,null,null,null,null,null,null,null,null,null,null,null,null,null,null,null,null,null,null,null,null,null,null,null,null,null,null,null,null,null,null,null,null,null,null,null,null,null,null,null,null,null,null,null,null,null,null,null,null,null,null,null,null,null,null,null,null,null,null,null,null,null,null,null,null,null,null,null,null,null,null,null,null,null,null,null,null,null,null,null,null,null,null,null,null,null,null,null,null,null,null,null,null,null,null,null,null,null,null,null,null,null,null,null,null,null,null,null,null,null,null,null,null,null,null,null,null,null,null,null,null,null,null,null,null,null,null,null,null,null,null,null,null,null,null,null,null,null,null,null,null,null,null,null,null,null,null,null,null,null,null,null,null,null,null,null,null,null,null,null,null,null,null,null,null,null,null,null,null,null,null,null,null,null,null,null,null,null,null,null,null,null,null,null,null,null,null,null,null,null,null,null,null,null,null,null,null,null,null,null,null,null,null,null,null,null,null,null,null,null,null,null,null,null,null,null,null,null,null,null,null,null,null,null,null,null,null,null,null,null,null,null,null,null,null,null,null,null,null,null,null,null,null,null,null,null,null,null,null,null,null,null,null,null,null,null,null,null,null,{"$f":"DATE(YEAR($OU$12)+1,5,8)","v":"2022-05-08"}]
[null,"05:00",null,null,null,null,null,null,null,null,null,null,null,null,null,null,null,null,null,null,null,null,null,null,null,null,null,null,null,null,null,null,null,null,null,null,null,null,null,null,null,null,null,null,null,null,null,null,null,null,null,null,null,null,null,null,null,null,null,null,null,null,null,null,null,null,null,null,null,null,null,null,null,null,null,null,null,null,null,null,null,null,null,null,null,null,null,null,null,null,null,null,null,null,null,null,null,null,null,null,null,null,null,null,null,null,null,null,null,null,null,null,null,null,null,null,null,null,null,null,null,null,null,null,null,null,null,null,null,null,null,null,null,null,null,null,null,null,null,null,null,null,null,null,null,null,null,null,null,null,null,null,null,null,null,null,null,null,null,null,null,null,null,null,null,null,null,null,null,null,null,null,null,null,null,null,null,null,null,null,null,null,null,null,null,null,null,null,null,null,null,null,null,null,null,null,null,null,null,null,null,null,null,null,null,null,null,null,null,null,null,null,null,null,null,null,null,null,null,null,null,null,null,null,null,null,null,null,null,null,null,null,null,null,null,null,null,null,null,null,null,null,null,null,null,null,null,null,null,null,null,null,null,null,null,null,null,null,null,null,null,null,null,null,null,null,null,null,null,null,null,null,null,null,null,null,null,null,null,null,null,null,null,null,null,null,null,null,null,null,null,null,null,null,null,null,null,null,null,null,null,null,null,null,null,null,null,null,null,null,null,null,null,null,null,null,null,null,null,null,null,null,null,null,null,null,null,null,null,null,null,null,null,null,null,null,null,null,null,null,null,null,null,null,null,null,null,null,null,null,null,null,null,null,null,null,null,null,null,null,null,null,null,null,null,null,null,null,null,null,null,null,null,null,null,null,null,null,null,null,null,null,null,null,null,null,null,null,null,null,null,null,null,null,null,null,null,null,null,null,null,null,null,null,null,null,null,null,null,null,{"$f":"OU27+39","v":"2022-05-27"}]
[null,"05:15",null,null,null,null,null,null,null,null,null,null,null,null,null,null,null,null,null,null,null,null,null,null,null,null,null,null,null,null,null,null,null,null,null,null,null,null,null,null,null,null,null,null,null,null,null,null,null,null,null,null,null,null,null,null,null,null,null,null,null,null,null,null,null,null,null,null,null,null,null,null,null,null,null,null,null,null,null,null,null,null,null,null,null,null,null,null,null,null,null,null,null,null,null,null,null,null,null,null,null,null,null,null,null,null,null,null,null,null,null,null,null,null,null,null,null,null,null,null,null,null,null,null,null,null,null,null,null,null,null,null,null,null,null,null,null,null,null,null,null,null,null,null,null,null,null,null,null,null,null,null,null,null,null,null,null,null,null,null,null,null,null,null,null,null,null,null,null,null,null,null,null,null,null,null,null,null,null,null,null,null,null,null,null,null,null,null,null,null,null,null,null,null,null,null,null,null,null,null,null,null,null,null,null,null,null,null,null,null,null,null,null,null,null,null,null,null,null,null,null,null,null,null,null,null,null,null,null,null,null,null,null,null,null,null,null,null,null,null,null,null,null,null,null,null,null,null,null,null,null,null,null,null,null,null,null,null,null,null,null,null,null,null,null,null,null,null,null,null,null,null,null,null,null,null,null,null,null,null,null,null,null,null,null,null,null,null,null,null,null,null,null,null,null,null,null,null,null,null,null,null,null,null,null,null,null,null,null,null,null,null,null,null,null,null,null,null,null,null,null,null,null,null,null,null,null,null,null,null,null,null,null,null,null,null,null,null,null,null,null,null,null,null,null,null,null,null,null,null,null,null,null,null,null,null,null,null,null,null,null,null,null,null,null,null,null,null,null,null,null,null,null,null,null,null,null,null,null,null,null,null,null,null,null,null,null,null,null,null,null,null,null,null,null,null,null,null,null,null,null,null,null,null,null,null,null,null,null,null,{"$f":"OU27+49","v":"2022-06-06"}]
[null,"05:30",null,null,null,null,null,null,null,null,null,null,null,null,null,null,null,null,null,null,null,null,null,null,null,null,null,null,null,null,null,null,null,null,null,null,null,null,null,null,null,null,null,null,null,null,null,null,null,null,null,null,null,null,null,null,null,null,null,null,null,null,null,null,null,null,null,null,null,null,null,null,null,null,null,null,null,null,null,null,null,null,null,null,null,null,null,null,null,null,null,null,null,null,null,null,null,null,null,null,null,null,null,null,null,null,null,null,null,null,null,null,null,null,null,null,null,null,null,null,null,null,null,null,null,null,null,null,null,null,null,null,null,null,null,null,null,null,null,null,null,null,null,null,null,null,null,null,null,null,null,null,null,null,null,null,null,null,null,null,null,null,null,null,null,null,null,null,null,null,null,null,null,null,null,null,null,null,null,null,null,null,null,null,null,null,null,null,null,null,null,null,null,null,null,null,null,null,null,null,null,null,null,null,null,null,null,null,null,null,null,null,null,null,null,null,null,null,null,null,null,null,null,null,null,null,null,null,null,null,null,null,null,null,null,null,null,null,null,null,null,null,null,null,null,null,null,null,null,null,null,null,null,null,null,null,null,null,null,null,null,null,null,null,null,null,null,null,null,null,null,null,null,null,null,null,null,null,null,null,null,null,null,null,null,null,null,null,null,null,null,null,null,null,null,null,null,null,null,null,null,null,null,null,null,null,null,null,null,null,null,null,null,null,null,null,null,null,null,null,null,null,null,null,null,null,null,null,null,null,null,null,null,null,null,null,null,null,null,null,null,null,null,null,null,null,null,null,null,null,null,null,null,null,null,null,null,null,null,null,null,null,null,null,null,null,null,null,null,null,null,null,null,null,null,null,null,null,null,null,null,null,null,null,null,null,null,null,null,null,null,null,null,null,null,null,null,null,null,null,null,null,null,null,null,null,null,null,null,null,{"$f":"OU27+50","v":"2022-06-07"}]
[null,"05:45",null,null,null,null,null,null,null,null,null,null,null,null,null,null,null,null,null,null,null,null,null,null,null,null,null,null,null,null,null,null,null,null,null,null,null,null,null,null,null,null,null,null,null,null,null,null,null,null,null,null,null,null,null,null,null,null,null,null,null,null,null,null,null,null,null,null,null,null,null,null,null,null,null,null,null,null,null,null,null,null,null,null,null,null,null,null,null,null,null,null,null,null,null,null,null,null,null,null,null,null,null,null,null,null,null,null,null,null,null,null,null,null,null,null,null,null,null,null,null,null,null,null,null,null,null,null,null,null,null,null,null,null,null,null,null,null,null,null,null,null,null,null,null,null,null,null,null,null,null,null,null,null,null,null,null,null,null,null,null,null,null,null,null,null,null,null,null,null,null,null,null,null,null,null,null,null,null,null,null,null,null,null,null,null,null,null,null,null,null,null,null,null,null,null,null,null,null,null,null,null,null,null,null,null,null,null,null,null,null,null,null,null,null,null,null,null,null,null,null,null,null,null,null,null,null,null,null,null,null,null,null,null,null,null,null,null,null,null,null,null,null,null,null,null,null,null,null,null,null,null,null,null,null,null,null,null,null,null,null,null,null,null,null,null,null,null,null,null,null,null,null,null,null,null,null,null,null,null,null,null,null,null,null,null,null,null,null,null,null,null,null,null,null,null,null,null,null,null,null,null,null,null,null,null,null,null,null,null,null,null,null,null,null,null,null,null,null,null,null,null,null,null,null,null,null,null,null,null,null,null,null,null,null,null,null,null,null,null,null,null,null,null,null,null,null,null,null,null,null,null,null,null,null,null,null,null,null,null,null,null,null,null,null,null,null,null,null,null,null,null,null,null,null,null,null,null,null,null,null,null,null,null,null,null,null,null,null,null,null,null,null,null,null,null,null,null,null,null,null,null,null,null,null,null,null,null,null,null,{"$f":"DATE(YEAR($OU$12)+1,7,14)","v":"2022-07-14"}]
[null,"06:00",null,null,null,null,null,null,null,null,null,null,null,null,null,null,null,null,null,null,null,null,null,null,null,null,null,null,null,null,null,null,null,null,null,null,null,null,null,null,null,null,null,null,null,null,null,null,null,null,null,null,null,null,null,null,null,null,null,null,null,null,null,null,null,null,null,null,null,null,null,null,null,null,null,null,null,null,null,null,null,null,null,null,null,null,null,null,null,null,null,null,null,null,null,null,null,null,null,null,null,null,null,null,null,null,null,null,null,null,null,null,null,null,null,null,null,null,null,null,null,null,null,null,null,null,null,null,null,null,null,null,null,null,null,null,null,null,null,null,null,null,null,null,null,null,null,null,null,null,null,null,null,null,null,null,null,null,null,null,null,null,null,null,null,null,null,null,null,null,null,null,null,null,null,null,null,null,null,null,null,null,null,null,null,null,null,null,null,null,null,null,null,null,null,null,null,null,null,null,null,null,null,null,null,null,null,null,null,null,null,null,null,null,null,null,null,null,null,null,null,null,null,null,null,null,null,null,null,null,null,null,null,null,null,null,null,null,null,null,null,null,null,null,null,null,null,null,null,null,null,null,null,null,null,null,null,null,null,null,null,null,null,null,null,null,null,null,null,null,null,null,null,null,null,null,null,null,null,null,null,null,null,null,null,null,null,null,null,null,null,null,null,null,null,null,null,null,null,null,null,null,null,null,null,null,null,null,null,null,null,null,null,null,null,null,null,null,null,null,null,null,null,null,null,null,null,null,null,null,null,null,null,null,null,null,null,null,null,null,null,null,null,null,null,null,null,null,null,null,null,null,null,null,null,null,null,null,null,null,null,null,null,null,null,null,null,null,null,null,null,null,null,null,null,null,null,null,null,null,null,null,null,null,null,null,null,null,null,null,null,null,null,null,null,null,null,null,null,null,null,null,null,null,null,null,null,null,null,null,{"$f":"DATE(YEAR($OU$12)+1,8,15)","v":"2022-08-15"}]
[null,"06:15",null,null,null,null,null,null,null,null,null,null,null,null,null,null,null,null,null,null,null,null,null,null,null,null,null,null,null,null,null,null,null,null,null,null,null,null,null,null,null,null,null,null,null,null,null,null,null,null,null,null,null,null,null,null,null,null,null,null,null,null,null,null,null,null,null,null,null,null,null,null,null,null,null,null,null,null,null,null,null,null,null,null,null,null,null,null,null,null,null,null,null,null,null,null,null,null,null,null,null,null,null,null,null,null,null,null,null,null,null,null,null,null,null,null,null,null,null,null,null,null,null,null,null,null,null,null,null,null,null,null,null,null,null,null,null,null,null,null,null,null,null,null,null,null,null,null,null,null,null,null,null,null,null,null,null,null,null,null,null,null,null,null,null,null,null,null,null,null,null,null,null,null,null,null,null,null,null,null,null,null,null,null,null,null,null,null,null,null,null,null,null,null,null,null,null,null,null,null,null,null,null,null,null,null,null,null,null,null,null,null,null,null,null,null,null,null,null,null,null,null,null,null,null,null,null,null,null,null,null,null,null,null,null,null,null,null,null,null,null,null,null,null,null,null,null,null,null,null,null,null,null,null,null,null,null,null,null,null,null,null,null,null,null,null,null,null,null,null,null,null,null,null,null,null,null,null,null,null,null,null,null,null,null,null,null,null,null,null,null,null,null,null,null,null,null,null,null,null,null,null,null,null,null,null,null,null,null,null,null,null,null,null,null,null,null,null,null,null,null,null,null,null,null,null,null,null,null,null,null,null,null,null,null,null,null,null,null,null,null,null,null,null,null,null,null,null,null,null,null,null,null,null,null,null,null,null,null,null,null,null,null,null,null,null,null,null,null,null,null,null,null,null,null,null,null,null,null,null,null,null,null,null,null,null,null,null,null,null,null,null,null,null,null,null,null,null,null,null,null,null,null,null,null,null,null,null,null,null,{"$f":"DATE(YEAR($OU$12)+1,11,1)","v":"2022-11-01"}]
[null,"06:30",null,null,null,null,null,null,null,null,null,null,null,null,null,null,null,null,null,null,null,null,null,null,null,null,null,null,null,null,null,null,null,null,null,null,null,null,null,null,null,null,null,null,null,null,null,null,null,null,null,null,null,null,null,null,null,null,null,null,null,null,null,null,null,null,null,null,null,null,null,null,null,null,null,null,null,null,null,null,null,null,null,null,null,null,null,null,null,null,null,null,null,null,null,null,null,null,null,null,null,null,null,null,null,null,null,null,null,null,null,null,null,null,null,null,null,null,null,null,null,null,null,null,null,null,null,null,null,null,null,null,null,null,null,null,null,null,null,null,null,null,null,null,null,null,null,null,null,null,null,null,null,null,null,null,null,null,null,null,null,null,null,null,null,null,null,null,null,null,null,null,null,null,null,null,null,null,null,null,null,null,null,null,null,null,null,null,null,null,null,null,null,null,null,null,null,null,null,null,null,null,null,null,null,null,null,null,null,null,null,null,null,null,null,null,null,null,null,null,null,null,null,null,null,null,null,null,null,null,null,null,null,null,null,null,null,null,null,null,null,null,null,null,null,null,null,null,null,null,null,null,null,null,null,null,null,null,null,null,null,null,null,null,null,null,null,null,null,null,null,null,null,null,null,null,null,null,null,null,null,null,null,null,null,null,null,null,null,null,null,null,null,null,null,null,null,null,null,null,null,null,null,null,null,null,null,null,null,null,null,null,null,null,null,null,null,null,null,null,null,null,null,null,null,null,null,null,null,null,null,null,null,null,null,null,null,null,null,null,null,null,null,null,null,null,null,null,null,null,null,null,null,null,null,null,null,null,null,null,null,null,null,null,null,null,null,null,null,null,null,null,null,null,null,null,null,null,null,null,null,null,null,null,null,null,null,null,null,null,null,null,null,null,null,null,null,null,null,null,null,null,null,null,null,null,null,null,null,null,{"$f":"DATE(YEAR($OU$12)+1,11,11)","v":"2022-11-11"}]
[null,"06:45",null,null,null,null,null,null,null,null,null,null,null,null,null,null,null,null,null,null,null,null,null,null,null,null,null,null,null,null,null,null,null,null,null,null,null,null,null,null,null,null,null,null,null,null,null,null,null,null,null,null,null,null,null,null,null,null,null,null,null,null,null,null,null,null,null,null,null,null,null,null,null,null,null,null,null,null,null,null,null,null,null,null,null,null,null,null,null,null,null,null,null,null,null,null,null,null,null,null,null,null,null,null,null,null,null,null,null,null,null,null,null,null,null,null,null,null,null,null,null,null,null,null,null,null,null,null,null,null,null,null,null,null,null,null,null,null,null,null,null,null,null,null,null,null,null,null,null,null,null,null,null,null,null,null,null,null,null,null,null,null,null,null,null,null,null,null,null,null,null,null,null,null,null,null,null,null,null,null,null,null,null,null,null,null,null,null,null,null,null,null,null,null,null,null,null,null,null,null,null,null,null,null,null,null,null,null,null,null,null,null,null,null,null,null,null,null,null,null,null,null,null,null,null,null,null,null,null,null,null,null,null,null,null,null,null,null,null,null,null,null,null,null,null,null,null,null,null,null,null,null,null,null,null,null,null,null,null,null,null,null,null,null,null,null,null,null,null,null,null,null,null,null,null,null,null,null,null,null,null,null,null,null,null,null,null,null,null,null,null,null,null,null,null,null,null,null,null,null,null,null,null,null,null,null,null,null,null,null,null,null,null,null,null,null,null,null,null,null,null,null,null,null,null,null,null,null,null,null,null,null,null,null,null,null,null,null,null,null,null,null,null,null,null,null,null,null,null,null,null,null,null,null,null,null,null,null,null,null,null,null,null,null,null,null,null,null,null,null,null,null,null,null,null,null,null,null,null,null,null,null,null,null,null,null,null,null,null,null,null,null,null,null,null,null,null,null,null,null,null,null,null,null,null,null,null,null,null,null,{"$f":"DATE(YEAR($OU$12)+1,12,25)","v":"2022-12-25"}]
[null,"07:00"]
[null,"07:15"]
[null,"07:30"]
[null,"07:45"]
[null,"08:00"]
[null,"08:15"]
[null,"08:30"]
[null,"08:45"]
[null,"09:00"]
[null,"09:15"]
[null,"09:30"]
[null,"09:45"]
[null,"10:00"]
[null,"10:15"]
[null,"10:30"]
[null,"10:45"]
[null,"11:00"]
[null,"11:15"]
[null,"11:30"]
[null,"11:45"]
[null,"12:00"]
[null,"12:15"]
[null,"12:30"]
[null,"12:45"]
[null,"13:00"]
[null,"13:15"]
[null,"13:30"]
[null,"13:45"]
[null,"14:00"]
[null,"14:15"]
[null,"14:30"]
[null,"14:45"]
[null,"15:00"]
[null,"15:15"]
[null,"15:30"]
[null,"15:45"]
[null,"16:00"]
[null,"16:15"]
[null,"16:30"]
[null,"16:45"]
[null,"17:00"]
[null,"17:15"]
[null,"17:30"]
[null,"17:45"]
[null,"18:00"]
[null,"18:15"]
[null,"18:30"]
[null,"18:45"]
[null,"19:00"]
[null,"19:15"]
[null,"19:30"]
[null,"19:45"]
[null,"20:00"]
[null,"20:15"]
[null,"20:30"]
[null,"20:45"]
[null,"21:00"]
[null,"21:15"]
[null,"21:30"]
[null,"21:45"]
[null,"22:00"]
[null,"22:15"]
[null,"22:30"]
[null,"22:45"]
[null,"23:00"]
[null,"23:15"]
[null,"23:30"]
[null,"23:45"]
[null,"24:00"]

{"sheet":"Horizontal","index":2,"n_rows":414,"n_cols":101,"rows_kept":414,"cut":false,"hidden":false,"merged":[]}
[]
["Sommaire"]
[]
[]
[]
["Exercice : ",2021]
[{"$f":"Vertical!$A$7","v":44487.775601851848},"Mois : ","Semaine : ","Date : ","Jour : ","00:15","00:30","00:45","01:00","01:15","01:30","01:45","02:00","02:15","02:30","02:45","03:00","03:15","03:30","03:45","04:00","04:15","04:30","04:45","05:00","05:15","05:30","05:45","06:00","06:15","06:30","06:45","07:00","07:15","07:30","07:45","08:00","08:15","08:30","08:45","09:00","09:15","09:30","09:45","10:00","10:15","10:30","10:45","11:00","11:15","11:30","11:45","12:00","12:15","12:30","12:45","13:00","13:15","13:30","13:45","14:00","14:15","14:30","14:45","15:00","15:15","15:30","15:45","16:00","16:15","16:30","16:45","17:00","17:15","17:30","17:45","18:00","18:15","18:30","18:45","19:00","19:15","19:30","19:45","20:00","20:15","20:30","20:45","21:00","21:15","21:30","21:45","22:00","22:15","22:30","22:45","23:00","23:15","23:30","23:45","24:00"]
[null,{"$f":"IF(D8=TODAY(),D8,IF(AND(WEEKNUM(D8,2)<>WEEKNUM(TODAY(),2),WEEKDAY(D8,2)=4),D8,\"\"))","v":""},{"$f":"IF(D8=TODAY(),WEEKNUM(D8,2),IF(AND(WEEKNUM(D8,2)<>WEEKNUM(TODAY(),2),WEEKDAY(D8,2)=1),WEEKNUM(D8,2),\"\"))","v":""},{"$f":"DATEVALUE(\"1/1/\"&$B$6)","v":"2021-01-01"},{"$f":"D8","v":"2021-01-01"}]
[null,{"$f":"IF(D9=TODAY(),D9,IF(AND(WEEKNUM(D9,2)<>WEEKNUM(TODAY(),2),WEEKDAY(D9,2)=4),D9,\"\"))","v":""},{"$f":"IF(D9=TODAY(),WEEKNUM(D9,2),IF(AND(WEEKNUM(D9,2)<>WEEKNUM(TODAY(),2),WEEKDAY(D9,2)=1),WEEKNUM(D9,2),\"\"))","v":""},{"$f":"D8+1","v":"2021-01-02"},{"$f":"D9","v":"2021-01-02"}]
[null,{"$f":"IF(D10=TODAY(),D10,IF(AND(WEEKNUM(D10,2)<>WEEKNUM(TODAY(),2),WEEKDAY(D10,2)=4),D10,\"\"))","v":""},"",{"$f":"D9+1","v":"2021-01-03"},"2021-01-03"]
[null,"",2,"2021-01-04","2021-01-04"]
[null,"","","2021-01-05","2021-01-05"]
[null,"","","2021-01-06","2021-01-06"]
[null,"2021-01-07","","2021-01-07","2021-01-07"]
[null,"","","2021-01-08","2021-01-08"]
[null,"","","2021-01-09","2021-01-09"]
[null,"","","2021-01-10","2021-01-10"]
[null,"",3,"2021-01-11","2021-01-11"]
[null,"","","2021-01-12","2021-01-12"]
[null,"","","2021-01-13","2021-01-13"]
[null,"2021-01-14","","2021-01-14","2021-01-14"]
[null,"","","2021-01-15","2021-01-15"]
[null,"","","2021-01-16","2021-01-16"]
[null,"","","2021-01-17","2021-01-17"]
[null,"",4,"2021-01-18","2021-01-18"]
[null,"","","2021-01-19","2021-01-19"]
[null,"","","2021-01-20","2021-01-20"]
[null,"2021-01-21","","2021-01-21","2021-01-21"]
[null,"","","2021-01-22","2021-01-22"]
[null,"","","2021-01-23","2021-01-23"]
[null,"","","2021-01-24","2021-01-24"]
[null,"",5,"2021-01-25","2021-01-25"]
[null,"","",{"$f":"D32+1","v":"2021-01-26"},"2021-01-26"]
[null,"","",{"$f":"D33+1","v":"2021-01-27"},"2021-01-27"]
[null,"2021-01-28","",{"$f":"D34+1","v":"2021-01-28"},"2021-01-28"]
[null,"","","2021-01-29","2021-01-29"]
[null,"","","2021-01-30","2021-01-30"]
[null,"","","2021-01-31","2021-01-31"]
[null,"",6,"2021-02-01","2021-02-01"]
[null,"","","2021-02-02","2021-02-02"]
[null,"","","2021-02-03","2021-02-03"]
[null,"2021-02-04","","2021-02-04","2021-02-04"]
[null,"","","2021-02-05","2021-02-05"]
[null,"","","2021-02-06","2021-02-06"]
[null,"","","2021-02-07","2021-02-07"]
[null,"",7,"2021-02-08","2021-02-08"]
[null,"","","2021-02-09","2021-02-09"]
[null,"","","2021-02-10","2021-02-10"]
[null,"2021-02-11","","2021-02-11","2021-02-11"]
[null,"","","2021-02-12","2021-02-12"]
[null,"","","2021-02-13","2021-02-13"]
[null,"","","2021-02-14","2021-02-14"]
[null,"",8,"2021-02-15","2021-02-15"]
[null,"","","2021-02-16","2021-02-16"]
[null,"","","2021-02-17","2021-02-17"]
[null,"2021-02-18","","2021-02-18","2021-02-18"]
[null,"","","2021-02-19","2021-02-19"]
[null,"","","2021-02-20","2021-02-20"]
[null,"","","2021-02-21","2021-02-21"]
[null,"",9,"2021-02-22","2021-02-22"]
[null,"","","2021-02-23","2021-02-23"]
[null,"","","2021-02-24","2021-02-24"]
[null,"2021-02-25","","2021-02-25","2021-02-25"]
[null,"","","2021-02-26","2021-02-26"]
[null,"","",{"$f":"D64+1","v":"2021-02-27"},"2021-02-27"]
[null,"","","2021-02-28","2021-02-28"]
[null,"",10,"2021-03-01","2021-03-01"]
[null,"","","2021-03-02","2021-03-02"]
[null,"","","2021-03-03","2021-03-03"]
[null,"2021-03-04","","2021-03-04","2021-03-04"]
[null,"","","2021-03-05","2021-03-05"]
[null,"","","2021-03-06","2021-03-06"]
[null,"",{"$f":"IF(D73=TODAY(),WEEKNUM(D73,2),IF(AND(WEEKNUM(D73,2)<>WEEKNUM(TODAY(),2),WEEKDAY(D73,2)=1),WEEKNUM(D73,2),\"\"))","v":""},"2021-03-07",{"$f":"D73","v":"2021-03-07"}]
[null,{"$f":"IF(D74=TODAY(),D74,IF(AND(WEEKNUM(D74,2)<>WEEKNUM(TODAY(),2),WEEKDAY(D74,2)=4),D74,\"\"))","v":""},11,"2021-03-08","2021-03-08"]
[null,"","","2021-03-09","2021-03-09"]
[null,"","","2021-03-10","2021-03-10"]
[null,"2021-03-11","","2021-03-11","2021-03-11"]
[null,"","","2021-03-12","2021-03-12"]
[null,"","","2021-03-13","2021-03-13"]
[null,"","","2021-03-14","2021-03-14"]
[null,"",12,"2021-03-15","2021-03-15"]
[null,"","","2021-03-16","2021-03-16"]
[null,"","","2021-03-17","2021-03-17"]
[null,"2021-03-18","","2021-03-18","2021-03-18"]
[null,"","","2021-03-19","2021-03-19"]
[null,"","","2021-03-20","2021-03-20"]
[null,"","","2021-03-21","2021-03-21"]
[null,"",13,"2021-03-22","2021-03-22"]
[null,"","","2021-03-23","2021-03-23"]
[null,"","","2021-03-24","2021-03-24"]
[null,"2021-03-25","","2021-03-25","2021-03-25"]
[null,"","","2021-03-26","2021-03-26"]
[null,"","","2021-03-27","2021-03-27"]
[null,"","","2021-03-28","2021-03-28"]
[null,"",14,"2021-03-29","2021-03-29"]
[null,"","","2021-03-30","2021-03-30"]
[null,"","","2021-03-31","2021-03-31"]
[null,"2021-04-01","","2021-04-01","2021-04-01"]
[null,"","","2021-04-02","2021-04-02"]
[null,"","","2021-04-03","2021-04-03"]
[null,"","","2021-04-04","2021-04-04"]
[null,"",15,"2021-04-05","2021-04-05"]
[null,"","","2021-04-06","2021-04-06"]
[null,"","","2021-04-07","2021-04-07"]
[null,"2021-04-08","","2021-04-08","2021-04-08"]
[null,"","","2021-04-09","2021-04-09"]
[null,"","","2021-04-10","2021-04-10"]
[null,"","","2021-04-11","2021-04-11"]
[null,"",16,"2021-04-12","2021-04-12"]
[null,"","","2021-04-13","2021-04-13"]
[null,"","","2021-04-14","2021-04-14"]
[null,"2021-04-15","","2021-04-15","2021-04-15"]
[null,"","","2021-04-16","2021-04-16"]
[null,"","","2021-04-17","2021-04-17"]
[null,"","","2021-04-18","2021-04-18"]
[null,"",17,"2021-04-19","2021-04-19"]
[null,"","","2021-04-20","2021-04-20"]
[null,"","","2021-04-21","2021-04-21"]
[null,"2021-04-22","","2021-04-22","2021-04-22"]
[null,"","","2021-04-23","2021-04-23"]
[null,"","","2021-04-24","2021-04-24"]
[null,"","","2021-04-25","2021-04-25"]
[null,"",18,"2021-04-26","2021-04-26"]
[null,"","","2021-04-27","2021-04-27"]
[null,"","","2021-04-28","2021-04-28"]
[null,"2021-04-29","","2021-04-29","2021-04-29"]
[null,"","","2021-04-30","2021-04-30"]
[null,"","","2021-05-01","2021-05-01"]
[null,"","",{"$f":"D128+1","v":"2021-05-02"},"2021-05-02"]
[null,"",19,"2021-05-03","2021-05-03"]
[null,"","","2021-05-04","2021-05-04"]
[null,"","","2021-05-05","2021-05-05"]
[null,"2021-05-06","","2021-05-06","2021-05-06"]
[null,"","","2021-05-07","2021-05-07"]
[null,"","","2021-05-08","2021-05-08"]
[null,"","","2021-05-09","2021-05-09"]
[null,"",{"$f":"IF(D137=TODAY(),WEEKNUM(D137,2),IF(AND(WEEKNUM(D137,2)<>WEEKNUM(TODAY(),2),WEEKDAY(D137,2)=1),WEEKNUM(D137,2),\"\"))","v":20},"2021-05-10",{"$f":"D137","v":"2021-05-10"}]
[null,{"$f":"IF(D138=TODAY(),D138,IF(AND(WEEKNUM(D138,2)<>WEEKNUM(TODAY(),2),WEEKDAY(D138,2)=4),D138,\"\"))","v":""},"","2021-05-11","2021-05-11"]
[null,"","","2021-05-12","2021-05-12"]
[null,"2021-05-13","","2021-05-13","2021-05-13"]
[null,"","","2021-05-14","2021-05-14"]
[null,"","","2021-05-15","2021-05-15"]
[null,"","","2021-05-16","2021-05-16"]
[null,"",21,"2021-05-17","2021-05-17"]
[null,"","","2021-05-18","2021-05-18"]
[null,"","","2021-05-19","2021-05-19"]
[null,"2021-05-20","","2021-05-20","2021-05-20"]
[null,"","","2021-05-21","2021-05-21"]
[null,"","","2021-05-22","2021-05-22"]
[null,"","","2021-05-23","2021-05-23"]
[null,"",22,"2021-05-24","2021-05-24"]
[null,"","","2021-05-25","2021-05-25"]
[null,"","","2021-05-26","2021-05-26"]
[null,"2021-05-27","","2021-05-27","2021-05-27"]
[null,"","","2021-05-28","2021-05-28"]
[null,"","","2021-05-29","2021-05-29"]
[null,"","","2021-05-30","2021-05-30"]
[null,"",23,"2021-05-31","2021-05-31"]
[null,"","","2021-06-01","2021-06-01"]
[null,"","","2021-06-02","2021-06-02"]
[null,"2021-06-03","","2021-06-03","2021-06-03"]
[null,"","","2021-06-04","2021-06-04"]
[null,"","","2021-06-05","2021-06-05"]
[null,"","","2021-06-06","2021-06-06"]
[null,"",24,"2021-06-07","2021-06-07"]
[null,"","","2021-06-08","2021-06-08"]
[null,"","","2021-06-09","2021-06-09"]
[null,"2021-06-10","","2021-06-10","2021-06-10"]
[null,"","","2021-06-11","2021-06-11"]
[null,"","","2021-06-12","2021-06-12"]
[null,"","","2021-06-13","2021-06-13"]
[null,"",25,"2021-06-14","2021-06-14"]
[null,"","","2021-06-15","2021-06-15"]
[null,"","","2021-06-16","2021-06-16"]
[null,"2021-06-17","","2021-06-17","2021-06-17"]
[null,"","","2021-06-18","2021-06-18"]
[null,"","","2021-06-19","2021-06-19"]
[null,"","","2021-06-20","2021-06-20"]
[null,"",26,"2021-06-21","2021-06-21"]
[null,"","","2021-06-22","2021-06-22"]
[null,"","","2021-06-23","2021-06-23"]
[null,"2021-06-24","","2021-06-24","2021-06-24"]
[null,"","","2021-06-25","2021-06-25"]
[null,"","","2021-06-26","2021-06-26"]
[null,"","","2021-06-27","2021-06-27"]
[null,"",27,"2021-06-28","2021-06-28"]
[null,"","","2021-06-29","2021-06-29"]
[null,"","","2021-06-30","2021-06-30"]
[null,"2021-07-01","","2021-07-01","2021-07-01"]
[null,"","","2021-07-02","2021-07-02"]
[null,"","","2021-07-03","2021-07-03"]
[null,"","","2021-07-04","2021-07-04"]
[null,"",28,{"$f":"D192+1","v":"2021-07-05"},"2021-07-05"]
[null,"","","2021-07-06","2021-07-06"]
[null,"","","2021-07-07","2021-07-07"]
[null,"2021-07-08","","2021-07-08","2021-07-08"]
[null,"","","2021-07-09","2021-07-09"]
[null,"","","2021-07-10","2021-07-10"]
[null,"","","2021-07-11","2021-07-11"]
[null,"",29,"2021-07-12","2021-07-12"]
[null,"",{"$f":"IF(D201=TODAY(),WEEKNUM(D201,2),IF(AND(WEEKNUM(D201,2)<>WEEKNUM(TODAY(),2),WEEKDAY(D201,2)=1),WEEKNUM(D201,2),\"\"))","v":""},"2021-07-13",{"$f":"D201","v":"2021-07-13"}]
[null,{"$f":"IF(D202=TODAY(),D202,IF(AND(WEEKNUM(D202,2)<>WEEKNUM(TODAY(),2),WEEKDAY(D202,2)=4),D202,\"\"))","v":""},"","2021-07-14","2021-07-14"]
[null,"2021-07-15","","2021-07-15","2021-07-15"]
[null,"","","2021-07-16","2021-07-16"]
[null,"","","2021-07-17","2021-07-17"]
[null,"","","2021-07-18","2021-07-18"]
[null,"",30,"2021-07-19","2021-07-19"]
[null,"","","2021-07-20","2021-07-20"]
[null,"","","2021-07-21","2021-07-21"]
[null,"2021-07-22","","2021-07-22","2021-07-22"]
[null,"","","2021-07-23","2021-07-23"]
[null,"","","2021-07-24","2021-07-24"]
[null,"","","2021-07-25","2021-07-25"]
[null,"",31,"2021-07-26","2021-07-26"]
[null,"","","2021-07-27","2021-07-27"]
[null,"","","2021-07-28","2021-07-28"]
[null,"2021-07-29","","2021-07-29","2021-07-29"]
[null,"","","2021-07-30","2021-07-30"]
[null,"","","2021-07-31","2021-07-31"]
[null,"","","2021-08-01","2021-08-01"]
[null,"",32,"2021-08-02","2021-08-02"]
[null,"","","2021-08-03","2021-08-03"]
[null,"","","2021-08-04","2021-08-04"]
[null,"2021-08-05","","2021-08-05","2021-08-05"]
[null,"","","2021-08-06","2021-08-06"]
[null,"","","2021-08-07","2021-08-07"]
[null,"","","2021-08-08","2021-08-08"]
[null,"",33,"2021-08-09","2021-08-09"]
[null,"","","2021-08-10","2021-08-10"]
[null,"","","2021-08-11","2021-08-11"]
[null,"2021-08-12","","2021-08-12","2021-08-12"]
[null,"","","2021-08-13","2021-08-13"]
[null,"","","2021-08-14","2021-08-14"]
[null,"","","2021-08-15","2021-08-15"]
[null,"",34,"2021-08-16","2021-08-16"]
[null,"","","2021-08-17","2021-08-17"]
[null,"","","2021-08-18","2021-08-18"]
[null,"2021-08-19","","2021-08-19","2021-08-19"]
[null,"","","2021-08-20","2021-08-20"]
[null,"","","2021-08-21","2021-08-21"]
[null,"","","2021-08-22","2021-08-22"]
[null,"",35,"2021-08-23","2021-08-23"]
[null,"","","2021-08-24","2021-08-24"]
[null,"","","2021-08-25","2021-08-25"]
[null,"2021-08-26","","2021-08-26","2021-08-26"]
[null,"","","2021-08-27","2021-08-27"]
[null,"","","2021-08-28","2021-08-28"]
[null,"","","2021-08-29","2021-08-29"]
[null,"",36,"2021-08-30","2021-08-30"]
[null,"","","2021-08-31","2021-08-31"]
[null,"","","2021-09-01","2021-09-01"]
[null,"2021-09-02","","2021-09-02","2021-09-02"]
[null,"","","2021-09-03","2021-09-03"]
[null,"","","2021-09-04","2021-09-04"]
[null,"","","2021-09-05","2021-09-05"]
[null,"",37,"2021-09-06","2021-09-06"]
[null,"","",{"$f":"D256+1","v":"2021-09-07"},"2021-09-07"]
[null,"","","2021-09-08","2021-09-08"]
[null,"2021-09-09","","2021-09-09","2021-09-09"]
[null,"","","2021-09-10","2021-09-10"]
[null,"","","2021-09-11","2021-09-11"]
[null,"","","2021-09-12","2021-09-12"]
[null,"",38,"2021-09-13","2021-09-13"]
[null,"","","2021-09-14","2021-09-14"]
[null,"",{"$f":"IF(D265=TODAY(),WEEKNUM(D265,2),IF(AND(WEEKNUM(D265,2)<>WEEKNUM(TODAY(),2),WEEKDAY(D265,2)=1),WEEKNUM(D265,2),\"\"))","v":""},"2021-09-15",{"$f":"D265","v":"2021-09-15"}]
[null,{"$f":"IF(D266=TODAY(),D266,IF(AND(WEEKNUM(D266,2)<>WEEKNUM(TODAY(),2),WEEKDAY(D266,2)=4),D266,\"\"))","v":"2021-09-16"},"","2021-09-16","2021-09-16"]
[null,"","","2021-09-17","2021-09-17"]
[null,"","","2021-09-18","2021-09-18"]
[null,"","","2021-09-19","2021-09-19"]
[null,"",39,"2021-09-20","2021-09-20"]
[null,"","","2021-09-21","2021-09-21"]
[null,"","","2021-09-22","2021-09-22"]
[null,"2021-09-23","","2021-09-23","2021-09-23"]
[null,"","","2021-09-24","2021-09-24"]
[null,"","","2021-09-25","2021-09-25"]
[null,"","","2021-09-26","2021-09-26"]
[null,"",40,"2021-09-27","2021-09-27"]
[null,"","","2021-09-28","2021-09-28"]
[null,"","","2021-09-29","2021-09-29"]
[null,"2021-09-30","","2021-09-30","2021-09-30"]
[null,"","","2021-10-01","2021-10-01"]
[null,"","","2021-10-02","2021-10-02"]
[null,"","","2021-10-03","2021-10-03"]
[null,"",41,"2021-10-04","2021-10-04"]
[null,"","","2021-10-05","2021-10-05"]
[null,"","","2021-10-06","2021-10-06"]
[null,"2021-10-07","","2021-10-07","2021-10-07"]
[null,"","","2021-10-08","2021-10-08"]
[null,"","","2021-10-09","2021-10-09"]
[null,"","","2021-10-10","2021-10-10"]
[null,"",42,"2021-10-11","2021-10-11"]
[null,"","","2021-10-12","2021-10-12"]
[null,"","","2021-10-13","2021-10-13"]
[null,"2021-10-14","","2021-10-14","2021-10-14"]
[null,"","","2021-10-15","2021-10-15"]
[null,"","","2021-10-16","2021-10-16"]
[null,"","","2021-10-17","2021-10-17"]
[null,"2021-10-18",43,"2021-10-18","2021-10-18"]
[null,"","","2021-10-19","2021-10-19"]
[null,"","","2021-10-20","2021-10-20"]
[null,"","","2021-10-21","2021-10-21"]
[null,"","","2021-10-22","2021-10-22"]
[null,"","","2021-10-23","2021-10-23"]
[null,"","","2021-10-24","2021-10-24"]
[null,"",44,"2021-10-25","2021-10-25"]
[null,"","","2021-10-26","2021-10-26"]
[null,"","","2021-10-27","2021-10-27"]
[null,"2021-10-28","","2021-10-28","2021-10-28"]
[null,"","","2021-10-29","2021-10-29"]
[null,"","","2021-10-30","2021-10-30"]
[null,"","","2021-10-31","2021-10-31"]
[null,"",45,"2021-11-01","2021-11-01"]
[null,"","","2021-11-02","2021-11-02"]
[null,"","","2021-11-03","2021-11-03"]
[null,"2021-11-04","","2021-11-04","2021-11-04"]
[null,"","","2021-11-05","2021-11-05"]
[null,"","","2021-11-06","2021-11-06"]
[null,"","","2021-11-07","2021-11-07"]
[null,"",46,"2021-11-08","2021-11-08"]
[null,"","","2021-11-09","2021-11-09"]
[null,"","",{"$f":"D320+1","v":"2021-11-10"},"2021-11-10"]
[null,"2021-11-11","","2021-11-11","2021-11-11"]
[null,"","","2021-11-12","2021-11-12"]
[null,"","","2021-11-13","2021-11-13"]
[null,"","","2021-11-14","2021-11-14"]
[null,"",47,"2021-11-15","2021-11-15"]
[null,"","","2021-11-16","2021-11-16"]
[null,"","","2021-11-17","2021-11-17"]
[null,"2021-11-18",{"$f":"IF(D329=TODAY(),WEEKNUM(D329,2),IF(AND(WEEKNUM(D329,2)<>WEEKNUM(TODAY(),2),WEEKDAY(D329,2)=1),WEEKNUM(D329,2),\"\"))","v":""},"2021-11-18",{"$f":"D329","v":"2021-11-18"}]
[null,{"$f":"IF(D330=TODAY(),D330,IF(AND(WEEKNUM(D330,2)<>WEEKNUM(TODAY(),2),WEEKDAY(D330,2)=4),D330,\"\"))","v":""},"","2021-11-19","2021-11-19"]
[null,"","","2021-11-20","2021-11-20"]
[null,"","","2021-11-21","2021-11-21"]
[null,"",48,"2021-11-22","2021-11-22"]
[null,"","","2021-11-23","2021-11-23"]
[null,"","","2021-11-24","2021-11-24"]
[null,"2021-11-25","","2021-11-25","2021-11-25"]
[null,"","","2021-11-26","2021-11-26"]
[null,"","","2021-11-27","2021-11-27"]
[null,"","","2021-11-28","2021-11-28"]
[null,"",49,"2021-11-29","2021-11-29"]
[null,"","","2021-11-30","2021-11-30"]
[null,"","","2021-12-01","2021-12-01"]
[null,"2021-12-02","","2021-12-02","2021-12-02"]
[null,"","","2021-12-03","2021-12-03"]
[null,"","","2021-12-04","2021-12-04"]
[null,"","","2021-12-05","2021-12-05"]
[null,"",50,"2021-12-06","2021-12-06"]
[null,"","","2021-12-07","2021-12-07"]
[null,"","","2021-12-08","2021-12-08"]
[null,"2021-12-09","","2021-12-09","2021-12-09"]
[null,"","","2021-12-10","2021-12-10"]
[null,"","","2021-12-11","2021-12-11"]
[null,"","","2021-12-12","2021-12-12"]
[null,"",51,"2021-12-13","2021-12-13"]
[null,"","","2021-12-14","2021-12-14"]
[null,"","","2021-12-15","2021-12-15"]
[null,"2021-12-16","","2021-12-16","2021-12-16"]
[null,"","","2021-12-17","2021-12-17"]
[null,"","","2021-12-18","2021-12-18"]
[null,"","","2021-12-19","2021-12-19"]
[null,"",52,"2021-12-20","2021-12-20"]
[null,"","","2021-12-21","2021-12-21"]
[null,"","","2021-12-22","2021-12-22"]
[null,"2021-12-23","","2021-12-23","2021-12-23"]
[null,"","","2021-12-24","2021-12-24"]
[null,"","","2021-12-25","2021-12-25"]
[null,"","","2021-12-26","2021-12-26"]
[null,"",53,"2021-12-27","2021-12-27"]
[null,"","","2021-12-28","2021-12-28"]
[null,"","","2021-12-29","2021-12-29"]
[null,"2021-12-30","","2021-12-30","2021-12-30"]
[null,"","","2021-12-31","2021-12-31"]
[null,"","","2022-01-01","2022-01-01"]
[null,"","","2022-01-02","2022-01-02"]
[null,"",2,"2022-01-03","2022-01-03"]
[null,"","","2022-01-04","2022-01-04"]
[null,"","","2022-01-05","2022-01-05"]
[null,"2022-01-06","","2022-01-06","2022-01-06"]
[null,"","","2022-01-07","2022-01-07"]
[null,"","","2022-01-08","2022-01-08"]
[null,"","","2022-01-09","2022-01-09"]
[null,"",3,"2022-01-10","2022-01-10"]
[null,"","","2022-01-11","2022-01-11"]
[null,"","","2022-01-12","2022-01-12"]
[null,"2022-01-13","",{"$f":"D384+1","v":"2022-01-13"},"2022-01-13"]
[null,"","","2022-01-14","2022-01-14"]
[null,"","","2022-01-15","2022-01-15"]
[null,"","","2022-01-16","2022-01-16"]
[null,"",4,"2022-01-17","2022-01-17"]
[null,"","","2022-01-18","2022-01-18"]
[null,"","","2022-01-19","2022-01-19"]
[null,"2022-01-20","","2022-01-20","2022-01-20"]
[null,"",{"$f":"IF(D393=TODAY(),WEEKNUM(D393,2),IF(AND(WEEKNUM(D393,2)<>WEEKNUM(TODAY(),2),WEEKDAY(D393,2)=1),WEEKNUM(D393,2),\"\"))","v":""},"2022-01-21",{"$f":"D393","v":"2022-01-21"}]
[null,{"$f":"IF(D394=TODAY(),D394,IF(AND(WEEKNUM(D394,2)<>WEEKNUM(TODAY(),2),WEEKDAY(D394,2)=4),D394,\"\"))","v":""},"","2022-01-22","2022-01-22"]
[null,"","","2022-01-23","2022-01-23"]
[null,"",5,"2022-01-24","2022-01-24"]
[null,"","","2022-01-25","2022-01-25"]
[null,"","","2022-01-26","2022-01-26"]
[null,"2022-01-27","","2022-01-27","2022-01-27"]
[null,"","","2022-01-28","2022-01-28"]
[null,"","","2022-01-29","2022-01-29"]
[null,"","","2022-01-30","2022-01-30"]
[null,"",6,"2022-01-31","2022-01-31"]
[null,"","","2022-02-01","2022-02-01"]
[null,"","","2022-02-02","2022-02-02"]
[null,"2022-02-03","","2022-02-03","2022-02-03"]
[null,"","","2022-02-04","2022-02-04"]
[null,"","","2022-02-05","2022-02-05"]
[null,"","","2022-02-06","2022-02-06"]
[null,"",7,"2022-02-07","2022-02-07"]
[null,"","","2022-02-08","2022-02-08"]
[null,"","","2022-02-09","2022-02-09"]
[null,"2022-02-10","","2022-02-10","2022-02-10"]
[null,"","","2022-02-11","2022-02-11"]